{"text_format":"1","workbook":"xlsx","n_sheets":2,"sheets":["variabel data","eshop-template"],"not_rendered":{"charts":0,"images":0,"macros":1,"external_links":0,"defined_names":1,"comments":0,"pivot_tables":0},"unopened":[],"bounds":{"document_bytes":16777216,"sheet_cells":100000,"rows_first":2000,"rows_last":500,"rows_between":2000,"halvings":0,"cell_chars":16384,"cell_head_chars":4096},"cells_cut":0,"cells_raw":0,"read":"whole","date_system":"1900"}

{"sheet":"variabel data","index":0,"n_rows":2766,"n_cols":6,"rows_kept":2766,"cut":false,"hidden":false,"merged":[]}
["Postcode","Plaatsnaam"]
[612,"SINTERKLAAS","Andorra (Vorstendom)","Andorre (Principauté)","Andorra (Principality)","AD"]
[1000,"BRUSSEL","Verenigde Arabische Emiraten","Émirats arabes unis","United Arab Emirates","AE"]
[1005,"VERENIGDE VERGADERING VAN DE GEMEENSCHAPPELIJKE ","Afghanistan","Afghanistan","Afghanistan","AF"]
[1006,"RAAD VAN DE VLAAMSE GEMEENSCHAPSCOMMISSIE","Antigua en Barbuda","Antigua et Barbuda","Antigua and Barbuda","AG"]
[1007,"ASSEMBLÉE DE LA COMMISSION COMMUNAUTAIRE FRANÇAISE","Anguilla","Anguilla","Anguilla","AI"]
[1008,"KAMER VAN VOLKSVERTEGENWOORDIGERS","Albanië","Albanie","Albania","AL"]
[1009,"BELGISCHE SENAAT","Armenië (Republiek)","Arménie (République)","Armenia (Republic)","AM"]
[1011,"VLAAMS PARLEMENT","Angola","Angola","Angola","AO"]
[1012,"PARLEMENT DE LA COMMUNAUTÉ FRANÇAISE","Antarctica","Antarctique","Antarctica","AQ"]
[1020,"LAKEN","Argentinië","Argentine","Argentina","AR"]
[1030,"SCHAARBEEK","Amerikaans-Samoa","Samoa américaine","American Samoa","AS"]
[1031,"CHRISTELIJKE SOCIALE ORGANISATIES","Oostenrijk","Autriche","Austria","AT"]
[1033,"RTL-TVI","Australië","Australie","Australia","AU"]
[1035,"MINISTERIE VAN HET BRUSSELS HOOFDSTEDELIJK GEWEST","Aruba","Aruba","Aruba","AW"]
[1040,"ETTERBEEK","Åland","Åland","Åland Islands","AX"]
[1041,"INTERNATIONAL PRESS CENTER","Azerbeidzjan (Republiek)","Azerbaidjan (République)","Azerbaijan (Republic)","AZ"]
[1043,"VRT","Bosnië-Herzegovina (Republiek)","Bosnie-Herzégovine (République)","Bosnia-Herzegovina (Republic)","BA"]
[1044,"RTBF","Barbados","Barbade","Barbados","BB"]
[1045,"DIV -- OBSOLETE - USE 1212 INSTEAD","Bangladesh","Bangladesh","Bangladesh","BD"]
[1046,"EUROPEAN EXTERNAL ACTION SERVICE","België","Belgique","Belgium","BE"]
[1047,"EUROPEES PARLEMENT","Burkina Faso","Burkina Faso","Burkina Faso","BF"]
[1048,"EUROPESE UNIE - RAAD","Bulgarije","Bulgarie","Bulgaria","BG"]
[1049,"EUROPESE UNIE - COMMISSIE","Bahrein","Bahrein","Bahrain","BH"]
[1050,"ELSENE","Burundi","Burundi","Burundi","BI"]
[1060,"SINT-GILLIS","Benin (Republiek)","Bénin (République)","Benin (Republic)","BJ"]
[1070,"ANDERLECHT","Saint-Barthélemy","Saint-Barthélemy","Saint Barthélemy","BL"]
[1080,"SINT-JANS-MOLENBEEK","Bermuda","Bermudes","Bermuda","BM"]
[1081,"KOEKELBERG","Brunei","Brunei","Brunei","BN"]
[1082,"SINT-AGATHA-BERCHEM","Bolivië","Bolivie","Bolivia","BO"]
[1083,"GANSHOREN","Bonaire, Sint Eustatius en Saba","Bonaire, Saint-Eustache et Saba","Bonaire, Sint Eustatius and Saba","BQ"]
[1090,"JETTE","Brazilië","Brésil","Brazil","BR"]
[1099,"BRUSSEL X","Bahama's","Bahamas","Bahamas","BS"]
[1100,"POSTCHEQUE","Bhutan","Bhoutan","Bhutan","BT"]
[1101,"SCANNING","Bouvet Eiland","Île Bouvet","Bouvet Island","BV"]
[1105,"SOC","Botswana","Botswana","Botswana","BW"]
[1110,"NATO","Belarus","Bélarus","Belarus","BY"]
[1120,"NEDER-OVER-HEEMBEEK","Belize","Belize","Belize","BZ"]
[1130,"HAREN","Canada","Canada","Canada","CA"]
[1140,"EVERE","Cocos","Cocos","Cocos","CC"]
[1150,"SINT-PIETERS-WOLUWE","Congo (Democratische Republiek)","Congo (République démocratique)","Congo (Democratic Republic)","CD"]
[1160,"OUDERGEM","Centraal-Afrikaanse Republiek","Centrafricaine (République)","Central African Republic","CF"]
[1170,"WATERMAAL-BOSVOORDE","Congo (Volksrepubliek)","Congo (République populaire)","Congo (People's Republic)","CG"]
[1180,"UKKEL","Zwitserland","Suisse","Switzerland","CH"]
[1190,"VORST","Ivoorkust","Côte-d'Ivoire","Côte-d'Ivoire","CI"]
[1200,"SINT-LAMBRECHTS-WOLUWE","Cook","Cook","Cook","CK"]
[1201,"RTL-TVI -- OBSOLETE - USE 1033 INSTEAD","Chili","Chili","Chile","CL"]
[1210,"SINT-JOOST-TEN-NOODE","Kameroen","Cameroun","Cameroon","CM"]
[1212,"FOD MOBILITEIT","China (Volksrepubliek)","Chine (République populaire)","China ( People's Republic)","CN"]
[1300,"LIMAL","Colombia","Colombie","Colombia","CO"]
[1300,"WAVRE","Costa Rica","Costa Rica","Costa Rica","CR"]
[1301,"BIERGES","Cuba","Cuba","Cuba","CU"]
[1310,"LA HULPE","Kaapverdië (Republiek)","Cap-Vert (République)","Cape Verde (Republic)","CV"]
[1315,"GLIMES","Curaçao","Curaçao","Curaçao","CW"]
[1315,"INCOURT","Christmaseiland","Île Christmas","Christmas Island","CX"]
[1315,"OPPREBAIS","Cyprus","Chypre","Cyprus","CY"]
[1315,"PIÈTREBAIS","Tsjechië (Tsjechische Republiek)","Tchéquie (République tchèque)","Czechia (Czech Republic)","CZ"]
[1315,"ROUX-MIROIR","Duitsland (Bondsrepubliek)","Allemagne (République fédérale)","Germany (Federal Republic)","DE"]
[1320,"BEAUVECHAIN","Djibouti (Republiek)","Djibouti (République)","Djibouti (Republic)","DJ"]
[1320,"HAMME-MILLE","Denemarken","Danemark","Denmark","DK"]
[1320,"L'ECLUSE","Dominica (Republiek)","Dominique (République)","Dominica (Republic)","DM"]
[1320,"NODEBAIS","Dominicaanse Republiek","République Dominicaine","Dominican Republic","DO"]
[1320,"TOURINNES-LA-GROSSE","Algerije","Algérie","Algeria","DZ"]
[1325,"BONLEZ","Ecuador","Équateur","Ecuador","EC"]
[1325,"CHAUMONT-GISTOUX","Estland (Republiek)","Estonie (République)","Estonia (Republic)","EE"]
[1325,"CORROY-LE-GRAND","Egypte (Arabische Republiek)","Égypte (République arabe)","Egypt (Arab Republic)","EG"]
[1325,"DION-VALMONT","Westelijke Sahara","Sahara occidental","West Sahara","EH"]
[1325,"LONGUEVILLE","Eritrea","Érythrée","Eritrea","ER"]
[1330,"RIXENSART","Spanje","Espagne","Spain","ES"]
[1331,"ROSIÈRES","Ethiopië","Éthiopie","Ethiopia","ET"]
[1332,"GENVAL","Finland","Finlande","Finland","FI"]
[1340,"OTTIGNIES","Fiji","Fidji","Fiji","FJ"]
[1341,"CÉROUX-MOUSTY","Falkland","Falkland","Falkland","FK"]
[1342,"LIMELETTE","Micronesië (Federale Staten)","Micronésie (États fédérés)","Micronesia ( Federate States)","FM"]
[1348,"LOUVAIN-LA-NEUVE","Faeröer","Féroé","Faroe","FO"]
[1350,"ENINES","Frankrijk","France","France","FR"]
[1350,"FOLX-LES-CAVES","Gabon","Gabon","Gabon","GA"]
[1350,"JANDRAIN-JANDRENOUILLE","Verenigd Koninkrijk","Royaume-Uni","United Kingdom","GB"]
[1350,"JAUCHE","Grenada","Grenade","Grenada","GD"]
[1350,"MARILLES","Georgië (Republiek)","Géorgie (République)","Georgia (Republic)","GE"]
[1350,"NODUWEZ","Frans-Guyana","Guyane française","French Guiana","GF"]
[1350,"ORP-LE-GRAND","Guernsey","Guernesey","Guernsey","GG"]
[1357,"LINSMEAU","Ghana","Ghana","Ghana","GH"]
[1357,"NEERHEYLISSEM","Gibraltar","Gibraltar","Gibraltar","GI"]
[1357,"OPHEYLISSEM","Groenland","Groenland","Greenland","GL"]
[1360,"MALÈVES-SAINTE-MARIE-WASTINES","Gambia","Gambie","Gambia","GM"]
[1360,"ORBAIS","Guinea","Guinée","Guinea","GN"]
[1360,"PERWEZ","Guadeloupe","Guadeloupe","Guadeloupe","GP"]
[1360,"THOREMBAIS-LES-BÉGUINES","Equatoriaal-Guinea","Guinée équatoriale","Equatorial Guinea","GQ"]
[1360,"THOREMBAIS-SAINT-TROND","Griekenland","Grèce","Greece","GR"]
[1367,"AUTRE-EGLISE","Zuid-Georgia en de Zuidelijke Sandwicheilanden","Géorgie du Sud-et-les Îles Sandwich du Sud","South Georgia and the South Sandwich Islands","GS"]
[1367,"BOMAL","Guatemala","Guatemala","Guatemala","GT"]
[1367,"GEEST-GÉROMPONT-PETIT-ROSIÈRE","Guam","Guam","Guam","GU"]
[1367,"GÉROMPONT","Guinee-Bissau","Guinée-Bissau","Guinea-Bissau","GW"]
[1367,"GRAND-ROSIÈRE-HOTTOMONT","Guyana","Guyana","Guyana","GY"]
[1367,"HUPPAYE","Hongkong","Hongkong","Hongkong","HK"]
[1367,"MONT-SAINT-ANDRÉ","Heard en McDonald","Heard et McDonald","Heard and McDonald","HM"]
[1367,"RAMILLIES","Honduras","Honduras","Honduras","HN"]
[1370,"DONGELBERG","Kroatië (Republiek)","Croatie (République)","Croatia (Republic)","HR"]
[1370,"JAUCHELETTE","Haïti","Haïti","Haiti","HT"]
[1370,"JODOIGNE","Hongarije (Republiek)","Hongrie (République)","Hungary (Republic)","HU"]
[1370,"JODOIGNE-SOUVERAINE","Indonesië","Indonésie","Indonesia","ID"]
[1370,"LATHUY","Ierland","Irlande","Ireland","IE"]
[1370,"MÉLIN","Israël","Israël","Israel","IL"]
[1370,"PIÉTRAIN","Eiland Man","Île de Man","Isle of Man","IM"]
[1370,"SAINT-JEAN-GEEST","India","Inde","India","IN"]
[1370,"SAINT-REMY-GEEST","Brits Indische oceaan","Océan Indien Britannique","British indian Ocean","IO"]
[1370,"ZÉTRUD-LUMAY","Irak","Irak","Iraq","IQ"]
[1380,"COUTURE-SAINT-GERMAIN","Iran","Iran","Iran","IR"]
[1380,"LASNE-CHAPELLE-SAINT-LAMBERT","IJsland","Islande","Iceland","IS"]
[1380,"MARANSART","Italië","Italie","Italy","IT"]
[1380,"OHAIN","Jersey","Jersey","Jersey","JE"]
[1380,"PLANCENOIT","Jamaica","Jamaïque","Jamaica","JM"]
[1390,"ARCHENNES","Jordanië","Jordanie","Jordan","JO"]
[1390,"BIEZ","Japan","Japon","Japan","JP"]
[1390,"BOSSUT-GOTTECHAIN","Kenia","Kenya","Kenya","KE"]
[1390,"GREZ-DOICEAU","Kirgizstan (Republiek)","Kirghistan (République)","Kyrgyzstan (Republic)","KG"]
[1390,"NETHEN","Cambodja (Koninkrijk)","Cambodge (Royaume)","Cambodia ( Kingdom)","KH"]
[1400,"MONSTREUX","Kiribati (Republiek)","Kiribati (République)","Kiribati (Republic)","KI"]
[1400,"NIVELLES","Comoren (Unie)","Comores (Union)","Comoros (Union)","KM"]
[1401,"BAULERS","Sint-Kitts en Nevis (Federatie)","Saint-Kitts et Nevis (Fédération)","Saint Kitts and Nevis (Federation)","KN"]
[1402,"THINES","Noord-Korea (Democratische Volksrepubliek)","Corée du Nord (République populaire démocratique)","North Korea (Democratic People's Republic)","KP"]
[1404,"BORNIVAL","Zuid-Korea (Republiek)","Corée du Sud (République)","South Korea (Republic)","KR"]
[1410,"WATERLOO","Koeweit","Koweit","Kuwait","KW"]
[1414,"PROMO-CONTROL","Caymaneilanden","Caïmanes","Cayman","KY"]
[1420,"BRAINE-L'ALLEUD","Kazachstan (Republiek)","Kazakhstan (République)","Kazakstan (Republic)","KZ"]
[1421,"OPHAIN-BOIS-SEIGNEUR-ISAAC","Laos","Laos","Laos","LA"]
[1428,"LILLOIS-WITTERZÉE","Libanon","Liban","Lebanon","LB"]
[1430,"BIERGHES","Saint Lucia","Sainte-Lucie","Saint Lucia","LC"]
[1430,"QUENAST","Liechtenstein","Liechtenstein","Liechtenstein","LI"]
[1430,"REBECQ-ROGNON","Sri Lanka","Sri Lanka","Sri Lanka","LK"]
[1435,"CORBAIS","Liberia","Libéria","Liberia","LR"]
[1435,"HÉVILLERS","Lesotho","Lesotho","Lesotho","LS"]
[1435,"MONT-SAINT-GUIBERT","Litouwen (Republiek)","Lituanie (République)","Lithuania (Republic)","LT"]
[1440,"BRAINE-LE-CHÂTEAU","Luxemburg (Groot-Hertogdom)","Luxembourg (Grand-Duché)","Luxembourg (Grand Duchy)","LU"]
[1440,"WAUTHIER-BRAINE","Letland (Republiek)","Lettonie (République)","Latvia (Republic)","LV"]
[1450,"CHASTRE-VILLEROUX-BLANMONT","Libië","Libye","Libya","LY"]
[1450,"CORTIL-NOIRMONT","Marokko","Maroc","Morocco","MA"]
[1450,"GENTINNES","Monaco (Vorstendom)","Monaco (Principauté)","Monaco (Principality)","MC"]
[1450,"SAINT-GÉRY","Moldavië (Republiek)","Moldavie (République)","Moldova (Republic)","MD"]
[1457,"NIL-SAINT-VINCENT-SAINT-MARTIN","Montenegro (Republiek)","Monténégro (République)","Montenegro (Republic)","ME"]
[1457,"TOURINNES-SAINT-LAMBERT","Sint-Maarten (Frans deel)","Saint-Martin (partie française)","Saint Martin (French part)","MF"]
[1457,"WALHAIN-SAINT-PAUL","Madagaskar (Democratische Republiek)","Madagascar (République démocratique)","Madagascar (Democratic Republic)","MG"]
[1460,"ITTRE","Marshall (Republiek)","Marshall (République)","Marshall (Republic)","MH"]
[1460,"VIRGINAL-SAMME","Macedonië (Ex-Joegoslavische Republiek)","Macédoine (Ex-République yougoslave)","Macedonia (Ex-Yugoslavia Republic)","MK"]
[1461,"HAUT-ITTRE","Mali","Mali","Mali","ML"]
[1470,"BAISY-THY","Myanmar (Unie)","Myanmar (Union)","Myanmar (Union)","MM"]
[1470,"BOUSVAL","Mongolië (Volksrepubliek)","Mongolie (République pop.)","Mongolia (People's Republic)","MN"]
[1470,"GENAPPE","Macao","Macao","Macao","MO"]
[1471,"LOUPOIGNE","Noordelijke Marianen","Mariannes du Nord","Northern Mariana","MP"]
[1472,"VIEUX-GENAPPE","Martinique","Martinique","Martinique","MQ"]
[1473,"GLABAIS","Mauritanië (Islamitische Republiek)","Mauritanie (République islamique)","Mauritania (Islamic Republic)","MR"]
[1474,"WAYS","Montserrat","Montserrat","Montserrat","MS"]
[1476,"HOUTAIN-LE-VAL","Malta","Malte","Malta","MT"]
[1480,"CLABECQ","Mauritius","Maurice","Mauritius","MU"]
[1480,"OISQUERCQ","Maldiven","Maldives","Maldives","MV"]
[1480,"SAINTES","Malawi","Malawi","Malawi","MW"]
[1480,"TUBIZE","Mexico","Mexique","Mexico","MX"]
[1490,"COURT-SAINT-ETIENNE","Maleisië","Malaisie","Malaysia","MY"]
[1495,"MARBAIS","Mozambique","Mozambique","Mozambique","MZ"]
[1495,"MELLERY","Namibië","Namibie","Namibia","NA"]
[1495,"SART-DAMES-AVELINES","Nieuw-Caledonië","Nouvelle-Calédonie","New Caledonia","NC"]
[1495,"TILLY","Niger","Niger","Niger","NE"]
[1495,"VILLERS-LA-VILLE","Norfolk","Norfolk","Norfolk","NF"]
[1500,"HALLE","Nigeria (Federale Republiek)","Nigéria (République fédérale)","Nigeria (Federal Republic)","NG"]
[1501,"BUIZINGEN","Nicaragua","Nicaragua","Nicaragua","NI"]
[1502,"LEMBEEK","Nederland","Pays-Bas","Netherlands","NL"]
[1540,"HERFELINGEN","Noorwegen","Norvège","Norway","NO"]
[1540,"HERNE","Nepal","Népal","Nepal","NP"]
[1541,"SINT-PIETERS-KAPELLE","Nauru","Nauru","Nauru","NR"]
[1547,"BEVER","Niue","Niué","Niue","NU"]
[1560,"HOEILAART","Nieuw-Zeeland","Nouvelle-Zélande","New Zealand","NZ"]
[1570,"GALMAARDEN","Oman (Sultanaat)","Oman (Sultanat)","Oman (Sultanate)","OM"]
[1570,"TOLLEMBEEK","Panama","Panama","Panama","PA"]
[1570,"VOLLEZELE","Peru","Pérou","Peru","PE"]
[1600,"OUDENAKEN","Frans-Polynesië","Polynésie française","French Polynesia","PF"]
[1600,"SINT-LAUREINS-BERCHEM","Papoea-Nieuw-Guinea","Papouasie-Nouvelle-Guinée","Papua New Guinea","PG"]
[1600,"SINT-PIETERS-LEEUW","Filipijnen","Philippines","Philippines","PH"]
[1601,"RUISBROEK","Pakistan","Pakistan","Pakistan","PK"]
[1602,"VLEZENBEEK","Polen (Republiek)","Pologne (République)","Poland (Republic)","PL"]
[1620,"DROGENBOS","Saint-Pierre en Miquelon","Saint-Pierre et Miquelon","Saint-Pierre and Miquelon","PM"]
[1630,"LINKEBEEK","Pitcairn","Pitcairn","Pitcairn","PN"]
[1640,"SINT-GENESIUS-RODE","Puerto Rico","Porto Rico","Puerto Rico","PR"]
[1650,"BEERSEL","Palestina","Palestine","Palestina","PS"]
[1651,"LOT","Portugal","Portugal","Portugal","PT"]
[1652,"ALSEMBERG","Palau","Palau","Palau","PW"]
[1653,"DWORP","Paraguay","Paraguay","Paraguay","PY"]
[1654,"HUIZINGEN","Qatar","Qatar","Qatar","QA"]
[1670,"BOGAARDEN","Réunion","Réunion","Réunion","RE"]
[1670,"HEIKRUIS","Roemenië","Roumanie","Romania","RO"]
[1670,"PEPINGEN","Servië (Republiek)","Serbie (République)","Serbia (Republic)","RS"]
[1671,"ELINGEN","Rusland (Federatie)","Russie (Fédération)","Russia (Federation )","RU"]
[1673,"BEERT","Rwanda (Republiek)","Rwanda (République)","Rwanda (Republic)","RW"]
[1674,"BELLINGEN","Saudi-Arabië","Arabie Saoudite","Saudi Arabia","SA"]
[1700,"DILBEEK","Salomon","Salomon","Solomon","SB"]
[1700,"SINT-MARTENS-BODEGEM","Seychellen (Republiek)","Seychelles (République)","Seychelles (Republic)","SC"]
[1700,"SINT-ULRIKS-KAPELLE","Soedan","Soudan","Sudan","SD"]
[1701,"ITTERBEEK","Zweden","Suède","Sweden","SE"]
[1702,"GROOT-BIJGAARDEN","Singapore","Singapour","Singapore","SG"]
[1703,"SCHEPDAAL","Saint Helena","Sainte-Hélène","Saint Helena","SH"]
[1730,"ASSE","Slovenië (Republiek)","Slovénie (République)","Slovenia (Republic)","SI"]
[1730,"BEKKERZEEL","Spitsbergen en Jan Mayen","Svalbard et Île Jan Mayen","Svalbard and Jan Mayen","SJ"]
[1730,"KOBBEGEM","Slowakije (Slovaakse Republiek)","Slovaquie (République slovaque)","Slovakia (Slovak Republic)","SK"]
[1730,"MOLLEM","Sierra Leone","Sierra Leone","Sierra Leone","SL"]
[1731,"RELEGEM","San Marino (Republiek)","Saint-Marin (République)","San Marino (Republic)","SM"]
[1731,"ZELLIK","Senegal","Sénégal","Senegal","SN"]
[1733,"HIGHCO DATA","Somalië (Republiek)","Somalie (République)","Somalia (Republic)","SO"]
[1740,"TERNAT","Suriname","Suriname","Suriname","SR"]
[1741,"WAMBEEK","Zuid-Soedan","Sud-Soudan","South Sudan","SS"]
[1742,"SINT-KATHERINA-LOMBEEK","São Tomé en Principe (Democratische Republiek)","São Tomé et Principe (République démocratique)","São Tome and Principe (Democratic Republic)","ST"]
[1745,"MAZENZELE","El Salvador","El Salvador","El Salvador","SV"]
[1745,"OPWIJK","Sint Maarten (Nederlands deel)","Saint-Martin (partie néerlandaise)","Saint Martin (Dutch part)","SX"]
[1750,"GAASBEEK","Syrië (Arabische Republiek)","Syrie (République arabe)","Syria (Arab Republic)","SY"]
[1750,"SINT-KWINTENS-LENNIK","Ngwane (Koninkrijk Swaziland)","Ngwane (Royaume du Swaziland)","Ngwane (Swaziland Kingdom)","SZ"]
[1750,"SINT-MARTENS-LENNIK","Turks- en Caicoseilanden","Turks et Caicos","Turks and Caicos","TC"]
[1755,"GOOIK","Tsjaad","Tchad","Chad","TD"]
[1755,"KESTER","Franse Zuidelijke Gebieden","Terres australes françaises","French Southern Territories","TF"]
[1755,"LEERBEEK","Togo","Togo","Togo","TG"]
[1755,"OETINGEN","Thailand","Thaïlande","Thailand","TH"]
[1760,"ONZE-LIEVE-VROUW-LOMBEEK","Tadzjikistan (Republiek)","Tadjikistan (République)","Tajikistan (Republic)","TJ"]
[1760,"PAMEL","Tokelau","Tokelau","Tokelau","TK"]
[1760,"ROOSDAAL","Timor Leste","Timor Leste","Timor Leste","TL"]
[1760,"STRIJTEM","Turkmenistan (Republiek)","Turkménistan (République)","Turkmenistan (Republic)","TM"]
[1761,"BORCHTLOMBEEK","Tunesië","Tunisie","Tunisia","TN"]
[1770,"LIEDEKERKE","Tonga","Tonga","Tonga","TO"]
[1780,"WEMMEL","Turkije","Turquie","Turkey","TR"]
[1785,"BRUSSEGEM","Trinidad en Tobago","Trinidad et Tobago","Trinidad and Tobago","TT"]
[1785,"HAMME","Tuvalu","Tuvalu","Tuvalu","TV"]
[1785,"MERCHTEM","Taiwan","Taïwan","Taiwan","TW"]
[1790,"AFFLIGEM","Tanzania (Verenigde Republiek)","Tanzanie (République unie)","Tanzania (United Republic)","TZ"]
[1790,"ESSENE","Oekraïne (Republiek)","Ukraine (République)","Ukraine (Republic)","UA"]
[1790,"HEKELGEM","Uganda","Ouganda","Uganda","UG"]
[1790,"TERALFENE","Ver afgelegen eilandjes van de Verenigde Staten","Îles mineures éloignées des États-Unis","United States Minor outlying islands","UM"]
[1800,"PEUTIE","Verenigde Staten van Amerika","États-Unis d'Amérique","United States of America","US"]
[1800,"VILVOORDE","Uruguay","Uruguay","Uruguay","UY"]
[1804,"CARGOVIL","Oezbekistan (Republiek)","Ouzbékistan (République)","Uzbekistan (Republic)","UZ"]
[1818,"VTM","Heilige Stoel","Saint-Siège","Holy See","VA"]
[1820,"MELSBROEK","Saint Vincent en de Grenadines","Saint-Vincent et les Grenadines","Saint Vincent and the Grenadines","VC"]
[1820,"PERK","Venezuela","Venezuela","Venezuela","VE"]
[1820,"STEENOKKERZEEL","Britse Maagdeneilanden","Îles vierges britanniques","British Virgin Islands","VG"]
[1830,"MACHELEN","Amerikaanse Maagdeneilanden","Îles vierges américaines","American Virgin Islands","VI"]
[1831,"DIEGEM","Vietnam (Socialistische Republiek)","Vietnam (République socialiste)","Vietnam (Socialist Republic)","VN"]
[1840,"LONDERZEEL","Vanuatu (Republiek)","Vanuatu (République)","Vanuatu (Republic)","VU"]
[1840,"MALDEREN","Wallis en Futuna","Wallis et Futuna","Wallis and Futuna","WF"]
[1840,"STEENHUFFEL","Samoa","Samoa","Samoa","WS"]
[1850,"GRIMBERGEN","Jemen (Republiek)","Yémen (République)","Yemen (Republic)","YE"]
[1851,"HUMBEEK","Mayotte","Mayotte","Mayotte","YT"]
[1852,"BEIGEM","Zuid-Afrika (Republiek)","Afrique du Sud (République)","South Africa (Republic)","ZA"]
[1853,"STROMBEEK-BEVER","Zambia","Zambie","Zambia","ZM"]
[1860,"MEISE","Zimbabwe","Zimbabwe","Zimbabwe","ZW"]
[1861,"WOLVERTEM"]
[1880,"KAPELLE-OP-DEN-BOS"]
[1880,"NIEUWENRODE"]
[1880,"RAMSDONK"]
[1910,"BERG"]
[1910,"BUKEN"]
[1910,"KAMPENHOUT"]
[1910,"NEDEROKKERZEEL"]
[1930,"NOSSEGEM"]
[1930,"ZAVENTEM"]
[1931,"BRUCARGO"]
[1932,"SINT-STEVENS-WOLUWE"]
[1933,"STERREBEEK"]
[1934,"OFFICE EXCHANGE BRUSSELS AIRPORT REMAILING"]
[1935,"CORPORATE VILLAGE"]
[1950,"KRAAINEM"]
[1970,"WEZEMBEEK-OPPEM"]
[1980,"EPPEGEM"]
[1980,"ZEMST"]
[1981,"HOFSTADE"]
[1982,"ELEWIJT"]
[1982,"WEERDE"]
[2000,"ANTWERPEN"]
[2018,"ANTWERPEN"]
[2020,"ANTWERPEN"]
[2030,"ANTWERPEN"]
[2040,"ANTWERPEN"]
[2040,"BERENDRECHT"]
[2040,"LILLO"]
[2040,"ZANDVLIET"]
[2050,"ANTWERPEN"]
[2060,"ANTWERPEN"]
[2070,"BURCHT"]
[2070,"ZWIJNDRECHT"]
[2099,"ANTWERPEN X"]
[2100,"DEURNE"]
[2110,"WIJNEGEM"]
[2140,"BORGERHOUT"]
[2150,"BORSBEEK"]
[2160,"WOMMELGEM"]
[2170,"MERKSEM"]
[2180,"EKEREN"]
[2200,"HERENTALS"]
[2200,"MORKHOVEN"]
[2200,"NOORDERWIJK"]
[2220,"HALLAAR"]
[2220,"HEIST-OP-DEN-BERG"]
[2221,"BOOISCHOT"]
[2222,"ITEGEM"]
[2222,"WIEKEVORST"]
[2223,"SCHRIEK"]
[2230,"HERSELT"]
[2230,"RAMSEL"]
[2235,"HOUTVENNE"]
[2235,"HULSHOUT"]
[2235,"WESTMEERBEEK"]
[2240,"MASSENHOVEN"]
[2240,"VIERSEL"]
[2240,"ZANDHOVEN"]
[2242,"PULDERBOS"]
[2243,"PULLE"]
[2250,"OLEN"]
[2260,"OEVEL"]
[2260,"TONGERLO"]
[2260,"WESTERLO"]
[2260,"ZOERLE-PARWIJS"]
[2270,"HERENTHOUT"]
[2275,"GIERLE"]
[2275,"LILLE"]
[2275,"POEDERLEE"]
[2275,"WECHELDERZANDE"]
[2280,"GROBBENDONK"]
[2288,"BOUWEL"]
[2290,"VORSELAAR"]
[2300,"TURNHOUT"]
[2310,"RIJKEVORSEL"]
[2320,"HOOGSTRATEN"]
[2321,"MEER"]
[2322,"MINDERHOUT"]
[2323,"WORTEL"]
[2328,"MEERLE"]
[2330,"MERKSPLAS"]
[2340,"BEERSE"]
[2340,"VLIMMEREN"]
[2350,"VOSSELAAR"]
[2360,"OUD-TURNHOUT"]
[2370,"ARENDONK"]
[2380,"RAVELS"]
[2381,"WEELDE"]
[2382,"POPPEL"]
[2387,"BAARLE-HERTOG"]
[2390,"MALLE"]
[2390,"OOSTMALLE"]
[2390,"WESTMALLE"]
[2400,"MOL"]
[2430,"EINDHOUT"]
[2430,"VORST"]
[2431,"VARENDONK"]
[2431,"VEERLE"]
[2440,"GEEL"]
[2450,"MEERHOUT"]
[2460,"KASTERLEE"]
[2460,"LICHTAART"]
[2460,"TIELEN"]
[2470,"RETIE"]
[2480,"DESSEL"]
[2490,"BALEN"]
[2491,"OLMEN"]
[2500,"KONINGSHOOIKT"]
[2500,"LIER"]
[2520,"BROECHEM"]
[2520,"EMBLEM"]
[2520,"OELEGEM"]
[2520,"RANST"]
[2530,"BOECHOUT"]
[2531,"VREMDE"]
[2540,"HOVE"]
[2547,"LINT"]
[2550,"KONTICH"]
[2550,"WAARLOOS"]
[2560,"BEVEL"]
[2560,"KESSEL"]
[2560,"NIJLEN"]
[2570,"DUFFEL"]
[2580,"BEERZEL"]
[2580,"PUTTE"]
[2590,"BERLAAR"]
[2590,"GESTEL"]
[2600,"BERCHEM"]
[2610,"WILRIJK"]
[2620,"HEMIKSEM"]
[2627,"SCHELLE"]
[2630,"AARTSELAAR"]
[2640,"MORTSEL"]
[2650,"EDEGEM"]
[2660,"HOBOKEN"]
[2800,"MECHELEN"]
[2800,"WALEM"]
[2801,"HEFFEN"]
[2811,"HOMBEEK"]
[2811,"LEEST"]
[2812,"MUIZEN"]
[2820,"BONHEIDEN"]
[2820,"RIJMENAM"]
[2830,"BLAASVELD"]
[2830,"HEINDONK"]
[2830,"TISSELT"]
[2830,"WILLEBROEK"]
[2840,"REET"]
[2840,"RUMST"]
[2840,"TERHAGEN"]
[2845,"NIEL"]
[2850,"BOOM"]
[2860,"SINT-KATELIJNE-WAVER"]
[2861,"ONZE-LIEVE-VROUW-WAVER"]
[2870,"BREENDONK"]
[2870,"LIEZELE"]
[2870,"PUURS"]
[2870,"RUISBROEK"]
[2880,"BORNEM"]
[2880,"HINGENE"]
[2880,"MARIEKERKE"]
[2880,"WEERT"]
[2890,"LIPPELO"]
[2890,"OPPUURS"]
[2890,"SINT-AMANDS"]
[2900,"SCHOTEN"]
[2910,"ESSEN"]
[2920,"KALMTHOUT"]
[2930,"BRASSCHAAT"]
[2940,"HOEVENEN"]
[2940,"STABROEK"]
[2950,"KAPELLEN"]
[2960,"BRECHT"]
[2960,"SINT-JOB-IN-'T-GOOR"]
[2960,"SINT-LENAARTS"]
[2970,"'S GRAVENWEZEL"]
[2970,"SCHILDE"]
[2980,"HALLE"]
[2980,"ZOERSEL"]
[2990,"LOENHOUT"]
[2990,"WUUSTWEZEL"]
[3000,"LEUVEN"]
[3001,"HEVERLEE"]
[3010,"KESSEL LO"]
[3012,"WILSELE"]
[3018,"WIJGMAAL"]
[3020,"HERENT"]
[3020,"VELTEM-BEISEM"]
[3020,"WINKSELE"]
[3040,"HULDENBERG"]
[3040,"LOONBEEK"]
[3040,"NEERIJSE"]
[3040,"OTTENBURG"]
[3040,"SINT-AGATHA-RODE"]
[3050,"OUD-HEVERLEE"]
[3051,"SINT-JORIS-WEERT"]
[3052,"BLANDEN"]
[3053,"HAASRODE"]
[3054,"VAALBEEK"]
[3060,"BERTEM"]
[3060,"KORBEEK-DIJLE"]
[3061,"LEEFDAAL"]
[3070,"KORTENBERG"]
[3071,"ERPS-KWERPS"]
[3078,"EVERBERG"]
[3078,"MEERBEEK"]
[3080,"DUISBURG"]
[3080,"TERVUREN"]
[3080,"VOSSEM"]
[3090,"OVERIJSE"]
[3110,"ROTSELAAR"]
[3111,"WEZEMAAL"]
[3118,"WERCHTER"]
[3120,"TREMELO"]
[3128,"BAAL"]
[3130,"BEGIJNENDIJK"]
[3130,"BETEKOM"]
[3140,"KEERBERGEN"]
[3150,"HAACHT"]
[3150,"TILDONK"]
[3150,"WESPELAAR"]
[3190,"BOORTMEERBEEK"]
[3191,"HEVER"]
[3200,"AARSCHOT"]
[3200,"GELRODE"]
[3201,"LANGDORP"]
[3202,"RILLAAR"]
[3210,"LINDEN"]
[3210,"LUBBEEK"]
[3211,"BINKOM"]
[3212,"PELLENBERG"]
[3220,"HOLSBEEK"]
[3220,"KORTRIJK-DUTSEL"]
[3220,"SINT-PIETERS-RODE"]
[3221,"NIEUWRODE"]
[3270,"SCHERPENHEUVEL"]
[3271,"AVERBODE"]
[3271,"ZICHEM"]
[3272,"MESSELBROEK"]
[3272,"TESTELT"]
[3290,"DEURNE"]
[3290,"DIEST"]
[3290,"SCHAFFEN"]
[3290,"WEBBEKOM"]
[3293,"KAGGEVINNE"]
[3294,"MOLENSTEDE"]
[3300,"BOST"]
[3300,"GOETSENHOVEN"]
[3300,"HAKENDOVER"]
[3300,"KUMTICH"]
[3300,"OORBEEK"]
[3300,"OPLINTER"]
[3300,"SINT-MARGRIETE-HOUTEM"]
[3300,"TIENEN"]
[3300,"VISSENAKEN"]
[3320,"HOEGAARDEN"]
[3320,"MELDERT"]
[3321,"OUTGAARDEN"]
[3350,"DRIESLINTER"]
[3350,"LINTER"]
[3350,"MELKWEZER"]
[3350,"NEERHESPEN"]
[3350,"NEERLINTER"]
[3350,"ORSMAAL-GUSSENHOVEN"]
[3350,"OVERHESPEN"]
[3350,"WOMMERSOM"]
[3360,"BIERBEEK"]
[3360,"KORBEEK-LO"]
[3360,"LOVENJOEL"]
[3360,"OPVELP"]
[3370,"BOUTERSEM"]
[3370,"KERKOM"]
[3370,"NEERVELP"]
[3370,"ROOSBEEK"]
[3370,"VERTRIJK"]
[3370,"WILLEBRINGEN"]
[3380,"BUNSBEEK"]
[3380,"GLABBEEK"]
[3381,"KAPELLEN"]
[3384,"ATTENRODE"]
[3390,"HOUWAART"]
[3390,"SINT-JORIS-WINGE"]
[3390,"TIELT"]
[3391,"MEENSEL-KIEZEGEM"]
[3400,"ELIKSEM"]
[3400,"EZEMAAL"]
[3400,"LAAR"]
[3400,"LANDEN"]
[3400,"NEERWINDEN"]
[3400,"OVERWINDEN"]
[3400,"RUMSDORP"]
[3400,"WANGE"]
[3401,"WAASMONT"]
[3401,"WALSBETS"]
[3401,"WALSHOUTEM"]
[3401,"WEZEREN"]
[3404,"ATTENHOVEN"]
[3404,"NEERLANDEN"]
[3440,"BUDINGEN"]
[3440,"DORMAAL"]
[3440,"HALLE-BOOIENHOVEN"]
[3440,"HELEN-BOS"]
[3440,"ZOUTLEEUW"]
[3450,"GEETBETS"]
[3450,"GRAZEN"]
[3454,"RUMMEN"]
[3460,"ASSENT"]
[3460,"BEKKEVOORT"]
[3461,"MOLENBEEK-WERSBEEK"]
[3470,"KORTENAKEN"]
[3470,"RANSBERG"]
[3470,"SINT-MARGRIETE-HOUTEM"]
[3471,"HOELEDEN"]
[3472,"KERSBEEK-MISKOM"]
[3473,"WAANRODE"]
[3500,"HASSELT"]
[3500,"SINT-LAMBRECHTS-HERK"]
[3501,"WIMMERTINGEN"]
[3510,"KERMT"]
[3510,"SPALBEEK"]
[3511,"KURINGEN"]
[3511,"STOKROOIE"]
[3512,"STEVOORT"]
[3520,"ZONHOVEN"]
[3530,"HELCHTEREN"]
[3530,"HOUTHALEN"]
[3540,"BERBROEK"]
[3540,"DONK"]
[3540,"HERK-DE-STAD"]
[3540,"SCHULEN"]
[3545,"HALEN"]
[3545,"LOKSBERGEN"]
[3545,"ZELEM"]
[3550,"HEUSDEN"]
[3550,"HEUSDEN-ZOLDER"]
[3550,"ZOLDER"]
[3560,"LINKHOUT"]
[3560,"LUMMEN"]
[3560,"MELDERT"]
[3570,"ALKEN"]
[3580,"BERINGEN"]
[3581,"BEVERLO"]
[3582,"KOERSEL"]
[3583,"PAAL"]
[3590,"DIEPENBEEK"]
[3600,"GENK"]
[3620,"GELLIK"]
[3620,"LANAKEN"]
[3620,"NEERHAREN"]
[3620,"VELDWEZELT"]
[3621,"REKEM"]
[3630,"EISDEN"]
[3630,"LEUT"]
[3630,"MAASMECHELEN"]
[3630,"MECHELEN-AAN-DE-MAAS"]
[3630,"MEESWIJK"]
[3630,"OPGRIMBIE"]
[3630,"VUCHT"]
[3631,"BOORSEM"]
[3631,"UIKHOVEN"]
[3640,"KESSENICH"]
[3640,"KINROOI"]
[3640,"MOLENBEERSEL"]
[3640,"OPHOVEN"]
[3650,"DILSEN"]
[3650,"DILSEN-STOKKEM"]
[3650,"ELEN"]
[3650,"LANKLAAR"]
[3650,"ROTEM"]
[3650,"STOKKEM"]
[3660,"OPGLABBEEK"]
[3665,"AS"]
[3668,"NIEL-BIJ-AS"]
[3670,"ELLIKOM"]
[3670,"GRUITRODE"]
[3670,"MEEUWEN"]
[3670,"NEERGLABBEEK"]
[3670,"WIJSHAGEN"]
[3680,"MAASEIK"]
[3680,"NEEROETEREN"]
[3680,"OPOETEREN"]
[3690,"ZUTENDAAL"]
[3700,"'S HERENELDEREN"]
[3700,"BERG"]
[3700,"DIETS-HEUR"]
[3700,"HAREN"]
[3700,"HENIS"]
[3700,"KOLMONT"]
[3700,"KONINKSEM"]
[3700,"LAUW"]
[3700,"MAL"]
[3700,"NEERREPEN"]
[3700,"NEREM"]
[3700,"OVERREPEN"]
[3700,"PIRINGEN"]
[3700,"RIKSINGEN"]
[3700,"RUTTEN"]
[3700,"SLUIZEN"]
[3700,"TONGEREN"]
[3700,"VREREN"]
[3700,"WIDOOIE"]
[3717,"HERSTAPPE"]
[3720,"KORTESSEM"]
[3721,"VLIERMAALROOT"]
[3722,"WINTERSHOVEN"]
[3723,"GUIGOVEN"]
[3724,"VLIERMAAL"]
[3730,"HOESELT"]
[3730,"ROMERSHOVEN"]
[3730,"SINT-HUIBRECHTS-HERN"]
[3730,"WERM"]
[3732,"SCHALKHOVEN"]
[3740,"BEVERST"]
[3740,"BILZEN"]
[3740,"EIGENBILZEN"]
[3740,"GROTE-SPOUWEN"]
[3740,"HEES"]
[3740,"KLEINE-SPOUWEN"]
[3740,"MOPERTINGEN"]
[3740,"MUNSTERBILZEN"]
[3740,"RIJKHOVEN"]
[3740,"ROSMEER"]
[3740,"WALTWILDER"]
[3742,"MARTENSLINDE"]
[3746,"HOELBEEK"]
[3770,"GENOELSELDEREN"]
[3770,"HERDEREN"]
[3770,"KANNE"]
[3770,"MEMBRUGGEN"]
[3770,"MILLEN"]
[3770,"RIEMST"]
[3770,"VAL-MEER"]
[3770,"VLIJTINGEN"]
[3770,"VROENHOVEN"]
[3770,"ZICHEN-ZUSSEN-BOLDER"]
[3790,"MOELINGEN"]
[3790,"SINT-MARTENS-VOEREN"]
[3791,"REMERSDAAL"]
[3792,"SINT-PIETERS-VOEREN"]
[3793,"TEUVEN"]
[3798,"S GRAVENVOEREN"]
[3800,"AALST"]
[3800,"BRUSTEM"]
[3800,"ENGELMANSHOVEN"]
[3800,"GELINDEN"]
[3800,"GROOT-GELMEN"]
[3800,"HALMAAL"]
[3800,"KERKOM-BIJ-SINT-TRUIDEN"]
[3800,"ORDINGEN"]
[3800,"SINT-TRUIDEN"]
[3800,"ZEPPEREN"]
[3803,"DURAS"]
[3803,"GORSEM"]
[3803,"RUNKELEN"]
[3803,"WILDEREN"]
[3806,"VELM"]
[3830,"BERLINGEN"]
[3830,"WELLEN"]
[3831,"HERTEN"]
[3832,"ULBEEK"]
[3840,"BOMMERSHOVEN"]
[3840,"BORGLOON"]
[3840,"BROEKOM"]
[3840,"GORS-OPLEEUW"]
[3840,"GOTEM"]
[3840,"GROOT-LOON"]
[3840,"HAREN"]
[3840,"HENDRIEKEN"]
[3840,"HOEPERTINGEN"]
[3840,"JESSEREN"]
[3840,"KERNIEL"]
[3840,"KOLMONT"]
[3840,"KUTTEKOVEN"]
[3840,"RIJKEL"]
[3840,"VOORT"]
[3850,"BINDERVELD"]
[3850,"KOZEN"]
[3850,"NIEUWERKERKEN"]
[3850,"WIJER"]
[3870,"BATSHEERS"]
[3870,"BOVELINGEN"]
[3870,"GUTSHOVEN"]
[3870,"HEERS"]
[3870,"HEKS"]
[3870,"HORPMAAL"]
[3870,"KLEIN-GELMEN"]
[3870,"MECHELEN-BOVELINGEN"]
[3870,"METTEKOVEN"]
[3870,"OPHEERS"]
[3870,"RUKKELINGEN-LOON"]
[3870,"VECHMAAL"]
[3870,"VEULEN"]
[3890,"BOEKHOUT"]
[3890,"GINGELOM"]
[3890,"JEUK"]
[3890,"KORTIJS"]
[3890,"MONTENAKEN"]
[3890,"NIEL-BIJ-SINT-TRUIDEN"]
[3890,"VORSEN"]
[3891,"BORLO"]
[3891,"BUVINGEN"]
[3891,"MIELEN-BOVEN-AALST"]
[3891,"MUIZEN"]
[3900,"OVERPELT"]
[3910,"NEERPELT"]
[3910,"SINT-HUIBRECHTS-LILLE"]
[3920,"LOMMEL"]
[3930,"ACHEL"]
[3930,"HAMONT"]
[3940,"HECHTEL"]
[3941,"EKSEL"]
[3945,"KWAADMECHELEN"]
[3945,"OOSTHAM"]
[3950,"BOCHOLT"]
[3950,"KAULILLE"]
[3950,"REPPEL"]
[3960,"BEEK"]
[3960,"BREE"]
[3960,"GERDINGEN"]
[3960,"OPITTER"]
[3960,"TONGERLO"]
[3970,"LEOPOLDSBURG"]
[3971,"HEPPEN"]
[3980,"TESSENDERLO"]
[3990,"GROTE-BROGEL"]
[3990,"KLEINE-BROGEL"]
[3990,"PEER"]
[3990,"WIJCHMAAL"]
[4000,"GLAIN"]
[4000,"LIÈGE"]
[4000,"ROCOURT"]
[4020,"BRESSOUX"]
[4020,"JUPILLE-SUR-MEUSE"]
[4020,"LIÈGE"]
[4020,"WANDRE"]
[4030,"GRIVEGNEE"]
[4031,"ANGLEUR"]
[4032,"CHÊNEE"]
[4040,"HERSTAL"]
[4041,"MILMORT"]
[4041,"VOTTEM"]
[4042,"LIERS"]
[4050,"CHAUDFONTAINE"]
[4051,"VAUX-SOUS-CHÈVREMONT"]
[4052,"BEAUFAYS"]
[4053,"EMBOURG"]
[4099,"LIÈGE X"]
[4100,"BONCELLES"]
[4100,"SERAING"]
[4101,"JEMEPPE-SUR-MEUSE"]
[4102,"OUGRÉE"]
[4120,"EHEIN"]
[4120,"ROTHEUX-RIMIÈRE"]
[4121,"NEUVILLE-EN-CONDROZ"]
[4122,"PLAINEVAUX"]
[4130,"ESNEUX"]
[4130,"TILFF"]
[4140,"DOLEMBREUX"]
[4140,"GOMZÉ-ANDOUMONT"]
[4140,"ROUVREUX"]
[4140,"SPRIMONT"]
[4141,"LOUVEIGNÉ"]
[4160,"ANTHISNES"]
[4161,"VILLERS-AUX-TOURS"]
[4162,"HODY"]
[4163,"TAVIER"]
[4170,"COMBLAIN-AU-PONT"]
[4171,"POULSEUR"]
[4180,"COMBLAIN-FAIRON"]
[4180,"COMBLAIN-LA-TOUR"]
[4180,"HAMOIR"]
[4181,"FILOT"]
[4190,"FERRIÈRES"]
[4190,"MY"]
[4190,"VIEUXVILLE"]
[4190,"WERBOMONT"]
[4190,"XHORIS"]
[4210,"BURDINNE"]
[4210,"HANNÊCHE"]
[4210,"LAMONTZÉE"]
[4210,"MARNEFFE"]
[4210,"OTEPPE"]
[4217,"HÉRON"]
[4217,"LAVOIR"]
[4217,"WARET-L'EVÊQUE"]
[4218,"COUTHUIN"]
[4219,"ACOSSE"]
[4219,"AMBRESIN"]
[4219,"MEEFFE"]
[4219,"WASSEIGES"]
[4250,"BOËLHE"]
[4250,"GEER"]
[4250,"HOLLOGNE-SUR-GEER"]
[4250,"LENS-SAINT-SERVAIS"]
[4252,"OMAL"]
[4253,"DARION"]
[4254,"LIGNEY"]
[4257,"BERLOZ"]
[4257,"CORSWAREM"]
[4257,"ROSOUX-CRENWICK"]
[4260,"AVENNES"]
[4260,"BRAIVES"]
[4260,"CIPLET"]
[4260,"FALLAIS"]
[4260,"FUMAL"]
[4260,"VILLE-EN-HESBAYE"]
[4261,"LATINNE"]
[4263,"TOURINNE"]
[4280,"ABOLENS"]
[4280,"AVERNAS-LE-BAUDUIN"]
[4280,"AVIN"]
[4280,"BERTRÉE"]
[4280,"BLEHEN"]
[4280,"CRAS-AVERNAS"]
[4280,"CREHEN"]
[4280,"GRAND-HALLET"]
[4280,"HANNUT"]
[4280,"LENS-SAINT-REMY"]
[4280,"MERDORP"]
[4280,"MOXHE"]
[4280,"PETIT-HALLET"]
[4280,"POUCET"]
[4280,"THISNES"]
[4280,"TROGNÉE"]
[4280,"VILLERS-LE-PEUPLIER"]
[4280,"WANSIN"]
[4287,"LINCENT"]
[4287,"PELLAINES"]
[4287,"RACOUR"]
[4300,"BETTINCOURT"]
[4300,"BLERET"]
[4300,"BOVENISTIER"]
[4300,"GRAND-AXHE"]
[4300,"LANTREMANGE"]
[4300,"OLEYE"]
[4300,"WAREMME"]
[4317,"AINEFFE"]
[4317,"BORLEZ"]
[4317,"CELLES"]
[4317,"FAIMES"]
[4317,"LES WALEFFES"]
[4317,"VIEMME"]
[4340,"AWANS"]
[4340,"FOOZ"]
[4340,"OTHÉE"]
[4340,"VILLERS-L'EVÊQUE"]
[4342,"HOGNOUL"]
[4347,"FEXHE-LE-HAUT-CLOCHER"]
[4347,"FRELOUX"]
[4347,"NOVILLE"]
[4347,"ROLOUX"]
[4347,"VOROUX-GOREUX"]
[4350,"LAMINE"]
[4350,"MOMALLE"]
[4350,"POUSSET"]
[4350,"REMICOURT"]
[4351,"HODEIGE"]
[4357,"DONCEEL"]
[4357,"HANEFFE"]
[4357,"JENEFFE"]
[4357,"LIMONT"]
[4360,"BERGILERS"]
[4360,"GRANDVILLE"]
[4360,"LENS-SUR-GEER"]
[4360,"OREYE"]
[4360,"OTRANGE"]
[4367,"CRISNÉE"]
[4367,"FIZE-LE-MARSAL"]
[4367,"KEMEXHE"]
[4367,"ODEUR"]
[4367,"THYS"]
[4400,"AWIRS"]
[4400,"CHOKIER"]
[4400,"FLÉMALLE-GRANDE"]
[4400,"FLÉMALLE-HAUTE"]
[4400,"GLEIXHE"]
[4400,"IVOZ-RAMET"]
[4400,"MONS-LEZ-LIÈGE"]
[4420,"MONTEGNÉE"]
[4420,"SAINT-NICOLAS"]
[4420,"TILLEUR"]
[4430,"ANS"]
[4431,"LONCIN"]
[4432,"ALLEUR"]
[4432,"XHENDREMAEL"]
[4450,"JUPRELLE"]
[4450,"LANTIN"]
[4450,"SLINS"]
[4451,"VOROUX-LEZ-LIERS"]
[4452,"PAIFVE"]
[4452,"WIHOGNE"]
[4453,"VILLERS-SAINT-SIMÉON"]
[4458,"FEXHE-SLINS"]
[4460,"BIERSET"]
[4460,"GRÂCE-BERLEUR"]
[4460,"GRÂCE-HOLLOGNE"]
[4460,"HOLLOGNE-AUX-PIERRES"]
[4460,"HORION-HOZÉMONT"]
[4460,"VELROUX"]
[4470,"SAINT-GEORGES-SUR-MEUSE"]
[4480,"CLERMONT-SOUS-HUY"]
[4480,"EHEIN"]
[4480,"ENGIS"]
[4480,"HERMALLE-SOUS-HUY"]
[4500,"BEN-AHIN"]
[4500,"HUY"]
[4500,"TIHANGE"]
[4520,"ANTHEIT"]
[4520,"BAS-OHA"]
[4520,"HUCCORGNE"]
[4520,"MOHA"]
[4520,"VINALMONT"]
[4520,"WANZE"]
[4530,"FIZE-FONTAINE"]
[4530,"VAUX-ET-BORSET"]
[4530,"VIEUX-WALEFFE"]
[4530,"VILLERS-LE-BOUILLET"]
[4530,"WARNANT-DREYE"]
[4537,"BODEGNÉE"]
[4537,"CHAPON-SERAING"]
[4537,"SERAING-LE-CHÂTEAU"]
[4537,"VERLAINE"]
[4540,"AMAY"]
[4540,"AMPSIN"]
[4540,"FLÔNE"]
[4540,"JEHAY"]
[4540,"OMBRET"]
[4550,"NANDRIN"]
[4550,"SAINT-SÉVERIN"]
[4550,"VILLERS-LE-TEMPLE"]
[4550,"YERNÉE-FRAINEUX"]
[4557,"ABÉE"]
[4557,"FRAITURE"]
[4557,"RAMELOT"]
[4557,"SENY"]
[4557,"SOHEIT-TINLOT"]
[4557,"TINLOT"]
[4560,"BOIS-ET-BORSU"]
[4560,"CLAVIER"]
[4560,"LES AVINS"]
[4560,"OCQUIER"]
[4560,"PAILHE"]
[4560,"TERWAGNE"]
[4570,"MARCHIN"]
[4570,"VYLE-ET-THAROUL"]
[4577,"MODAVE"]
[4577,"OUTRELOUXHE"]
[4577,"STRÉE-LEZ-HUY"]
[4577,"VIERSET-BARSE"]
[4590,"ELLEMELLE"]
[4590,"OUFFET"]
[4590,"WARZÉE"]
[4600,"LANAYE"]
[4600,"LIXHE"]
[4600,"RICHELLE"]
[4600,"VISÉ"]
[4601,"ARGENTEAU"]
[4602,"CHERATTE"]
[4606,"SAINT-ANDRÉ"]
[4607,"BERNEAU"]
[4607,"BOMBAYE"]
[4607,"DALHEM"]
[4607,"FENEUR"]
[4607,"MORTROUX"]
[4608,"NEUFCHÂTEAU"]
[4608,"WARSAGE"]
[4610,"BELLAIRE"]
[4610,"BEYNE-HEUSAY"]
[4610,"QUEUE-DU-BOIS"]
[4620,"FLÉRON"]
[4621,"RETINNE"]
[4623,"MAGNÉE"]
[4624,"ROMSÉE"]
[4630,"AYENEUX"]
[4630,"MICHEROUX"]
[4630,"SOUMAGNE"]
[4630,"TIGNÉE"]
[4631,"EVEGNÉE"]
[4632,"CÉREXHE-HEUSEUX"]
[4633,"MELEN"]
[4650,"CHAINEUX"]
[4650,"GRAND-RECHAIN"]
[4650,"HERVE"]
[4650,"JULÉMONT"]
[4651,"BATTICE"]
[4652,"XHENDELESSE"]
[4653,"BOLLAND"]
[4654,"CHARNEUX"]
[4670,"BLÉGNY"]
[4670,"MORTIER"]
[4670,"TREMBLEUR"]
[4671,"BARCHON"]
[4671,"HOUSSE"]
[4671,"SAIVE"]
[4672,"SAINT-REMY"]
[4680,"HERMÉE"]
[4680,"OUPEYE"]
[4681,"HERMALLE-SOUS-ARGENTEAU"]
[4682,"HEURE-LE-ROMAIN"]
[4682,"HOUTAIN-SAINT-SIMÉON"]
[4683,"VIVEGNIS"]
[4684,"HACCOURT"]
[4690,"BASSENGE"]
[4690,"BOIRS"]
[4690,"EBEN-EMAEL"]
[4690,"GLONS"]
[4690,"ROCLENGE-SUR-GEER"]
[4690,"WONCK"]
[4700,"EUPEN"]
[4701,"KETTENIS"]
[4710,"LONTZEN"]
[4711,"WALHORN"]
[4720,"LA CALAMINE"]
[4721,"NEU-MORESNET"]
[4728,"HERGENRATH"]
[4730,"HAUSET"]
[4730,"RAEREN"]
[4731,"EYNATTEN"]
[4750,"BUTGENBACH"]
[4750,"ELSENBORN"]
[4760,"BULLANGE"]
[4760,"MANDERFELD"]
[4761,"ROCHERATH"]
[4770,"AMBLÈVE"]
[4770,"MEYERODE"]
[4771,"HEPPENBACH"]
[4780,"RECHT"]
[4780,"SAINT-VITH"]
[4782,"SCHOENBERG"]
[4783,"LOMMERSWEILER"]
[4784,"CROMBACH"]
[4790,"REULAND"]
[4791,"THOMMEN"]
[4800,"ENSIVAL"]
[4800,"LAMBERMONT"]
[4800,"PETIT-RECHAIN"]
[4800,"POLLEUR"]
[4800,"VERVIERS"]
[4801,"STEMBERT"]
[4802,"HEUSY"]
[4820,"DISON"]
[4821,"ANDRIMONT"]
[4830,"LIMBOURG"]
[4831,"BILSTAIN"]
[4834,"GOÉ"]
[4837,"BAELEN"]
[4837,"MEMBACH"]
[4840,"WELKENRAEDT"]
[4841,"HENRI-CHAPELLE"]
[4845,"JALHAY"]
[4845,"SART-LEZ-SPA"]
[4850,"MONTZEN"]
[4850,"MORESNET"]
[4851,"GEMMENICH"]
[4851,"SIPPENAEKEN"]
[4852,"HOMBOURG"]
[4860,"CORNESSE"]
[4860,"PEPINSTER"]
[4860,"WEGNEZ"]
[4861,"SOIRON"]
[4870,"FORÊT"]
[4870,"FRAIPONT"]
[4870,"NESSONVAUX"]
[4877,"OLNE"]
[4880,"AUBEL"]
[4890,"CLERMONT"]
[4890,"THIMISTER"]
[4900,"SPA"]
[4910,"LA REID"]
[4910,"POLLEUR"]
[4910,"THEUX"]
[4920,"AYWAILLE"]
[4920,"ERNONHEID"]
[4920,"HARZÉ"]
[4920,"LOUVEIGNÉ"]
[4920,"SOUGNÉ-REMOUCHAMPS"]
[4950,"FAYMONVILLE"]
[4950,"ROBERTVILLE"]
[4950,"SOURBRODT"]
[4950,"WAIMES"]
[4960,"BELLEVAUX-LIGNEUVILLE"]
[4960,"BEVERCÉ"]
[4960,"MALMEDY"]
[4970,"FRANCORCHAMPS"]
[4970,"STAVELOT"]
[4980,"FOSSE"]
[4980,"TROIS-PONTS"]
[4980,"WANNE"]
[4983,"BASSE-BODEUX"]
[4987,"CHEVRON"]
[4987,"LA GLEIZE"]
[4987,"LORCÉ"]
[4987,"RAHIER"]
[4987,"STOUMONT"]
[4990,"ARBREFONTAINE"]
[4990,"BRA"]
[4990,"LIERNEUX"]
[5000,"BEEZ"]
[5000,"NAMUR"]
[5001,"BELGRADE"]
[5002,"SAINT-SERVAIS"]
[5003,"SAINT-MARC"]
[5004,"BOUGE"]
[5010,"SA SUDPRESSE"]
[5012,"PARLEMENT WALLON"]
[5020,"CHAMPION"]
[5020,"DAUSSOULX"]
[5020,"FLAWINNE"]
[5020,"MALONNE"]
[5020,"SUARLÉE"]
[5020,"TEMPLOUX"]
[5020,"VEDRIN"]
[5021,"BONINNE"]
[5022,"COGNELÉE"]
[5024,"GELBRESSÉE"]
[5024,"MARCHE-LES-DAMES"]
[5030,"BEUZET"]
[5030,"ERNAGE"]
[5030,"GEMBLOUX"]
[5030,"GRAND-MANIL"]
[5030,"LONZÉE"]
[5030,"SAUVENIÈRE"]
[5031,"GRAND-LEEZ"]
[5032,"BOSSIÈRE"]
[5032,"BOTHEY"]
[5032,"CORROY-LE-CHÂTEAU"]
[5032,"ISNES"]
[5032,"MAZY"]
[5060,"ARSIMONT"]
[5060,"AUVELAIS"]
[5060,"FALISOLLE"]
[5060,"KEUMIÉE"]
[5060,"MOIGNELÉE"]
[5060,"TAMINES"]
[5060,"VELAINE-SUR-SAMBRE"]
[5070,"AISEMONT"]
[5070,"FOSSES-LA-VILLE"]
[5070,"LE ROUX"]
[5070,"SART-EUSTACHE"]
[5070,"SART-SAINT-LAURENT"]
[5070,"VITRIVAL"]
[5080,"EMINES"]
[5080,"RHISNES"]
[5080,"VILLERS-LEZ-HEEST"]
[5080,"WARISOULX"]
[5081,"BOVESSE"]
[5081,"MEUX"]
[5081,"SAINT-DENIS-BOVESSE"]
[5100,"DAVE"]
[5100,"JAMBES"]
[5100,"NANINNE"]
[5100,"WÉPION"]
[5100,"WIERDE"]
[5101,"ERPENT"]
[5101,"LIVES-SUR-MEUSE"]
[5101,"LOYERS"]
[5140,"BOIGNÉE"]
[5140,"LIGNY"]
[5140,"SOMBREFFE"]
[5140,"TONGRINNE"]
[5150,"FLOREFFE"]
[5150,"FLORIFFOUX"]
[5150,"FRANIÈRE"]
[5150,"SOYE"]
[5170,"ARBRE"]
[5170,"BOIS-DE-VILLERS"]
[5170,"LESVE"]
[5170,"LUSTIN"]
[5170,"PROFONDEVILLE"]
[5170,"RIVIÈRE"]
[5190,"BALÂTRE"]
[5190,"HAM-SUR-SAMBRE"]
[5190,"JEMEPPE-SUR-SAMBRE"]
[5190,"MORNIMONT"]
[5190,"MOUSTIER-SUR-SAMBRE"]
[5190,"ONOZ"]
[5190,"SAINT-MARTIN"]
[5190,"SPY"]
[5300,"ANDENNE"]
[5300,"BONNEVILLE"]
[5300,"COUTISSE"]
[5300,"LANDENNE"]
[5300,"MAIZERET"]
[5300,"NAMÊCHE"]
[5300,"SCLAYN"]
[5300,"SEILLES"]
[5300,"THON"]
[5300,"VEZIN"]
[5310,"AISCHE-EN-REFAIL"]
[5310,"BOLINNE"]
[5310,"BONEFFE"]
[5310,"BRANCHON"]
[5310,"DHUY"]
[5310,"EGHEZÉE"]
[5310,"HANRET"]
[5310,"LEUZE"]
[5310,"LIERNU"]
[5310,"LONGCHAMPS"]
[5310,"MEHAIGNE"]
[5310,"NOVILLE-SUR-MÉHAIGNE"]
[5310,"SAINT-GERMAIN"]
[5310,"TAVIERS"]
[5310,"UPIGNY"]
[5310,"WARET-LA-CHAUSSÉE"]
[5330,"ASSESSE"]
[5330,"MAILLEN"]
[5330,"SART-BERNARD"]
[5332,"CRUPET"]
[5333,"SORINNE-LA-LONGUE"]
[5334,"FLORÉE"]
[5336,"COURRIÈRE"]
[5340,"FAULX-LES-TOMBES"]
[5340,"GESVES"]
[5340,"HALTINNE"]
[5340,"MOZET"]
[5340,"SORÉE"]
[5350,"EVELETTE"]
[5350,"OHEY"]
[5351,"HAILLOT"]
[5352,"PERWEZ-HAILLOT"]
[5353,"GOESNES"]
[5354,"JALLET"]
[5360,"HAMOIS"]
[5360,"NATOYE"]
[5361,"MOHIVILLE"]
[5361,"SCY"]
[5362,"ACHET"]
[5363,"EMPTINNE"]
[5364,"SCHALTIN"]
[5370,"BARVAUX-CONDROZ"]
[5370,"FLOSTOY"]
[5370,"HAVELANGE"]
[5370,"JENEFFE"]
[5370,"PORCHERESSE"]
[5370,"VERLÉE"]
[5372,"MÉAN"]
[5374,"MAFFE"]
[5376,"MIÉCRET"]
[5377,"BAILLONVILLE"]
[5377,"BONSIN"]
[5377,"HEURE"]
[5377,"HOGNE"]
[5377,"NETTINNE"]
[5377,"NOISEUX"]
[5377,"SINSIN"]
[5377,"SOMME-LEUZE"]
[5377,"WAILLET"]
[5380,"BIERWART"]
[5380,"CORTIL-WODON"]
[5380,"FORVILLE"]
[5380,"FRANC-WARET"]
[5380,"HEMPTINNE"]
[5380,"HINGEON"]
[5380,"MARCHOVELETTE"]
[5380,"NOVILLE-LES-BOIS"]
[5380,"PONTILLAS"]
[5380,"TILLIER"]
[5500,"ANSEREMME"]
[5500,"BOUVIGNES-SUR-MEUSE"]
[5500,"DINANT"]
[5500,"DRÉHANCE"]
[5500,"FALMAGNE"]
[5500,"FALMIGNOUL"]
[5500,"FURFOOZ"]
[5501,"LISOGNE"]
[5502,"THYNES"]
[5503,"SORINNES"]
[5504,"FOY-NOTRE-DAME"]
[5520,"ANTHÉE"]
[5520,"ONHAYE"]
[5521,"SERVILLE"]
[5522,"FALAEN"]
[5523,"SOMMIÈRE"]
[5523,"WEILLEN"]
[5524,"GERIN"]
[5530,"DORINNE"]
[5530,"DURNAL"]
[5530,"EVREHAILLES"]
[5530,"GODINNE"]
[5530,"HOUX"]
[5530,"MONT"]
[5530,"PURNODE"]
[5530,"SPONTIN"]
[5530,"YVOIR"]
[5537,"ANHÉE"]
[5537,"ANNEVOIE-ROUILLON"]
[5537,"BIOUL"]
[5537,"DENÉE"]
[5537,"HAUT-LE-WASTIA"]
[5537,"SOSOYE"]
[5537,"WARNANT"]
[5540,"HASTIÈRE-LAVAUX"]
[5540,"HERMETON-SUR-MEUSE"]
[5540,"WAULSORT"]
[5541,"HASTIÈRE-PAR-DELÀ"]
[5542,"BLAIMONT"]
[5543,"HEER"]
[5544,"AGIMONT"]
[5550,"ALLE"]
[5550,"BAGIMONT"]
[5550,"BOHAN"]
[5550,"CHAIRIÈRE"]
[5550,"LAFORET"]
[5550,"MEMBRE"]
[5550,"MOUZAIVE"]
[5550,"NAFRAITURE"]
[5550,"ORCHIMONT"]
[5550,"PUSSEMANGE"]
[5550,"SUGNY"]
[5550,"VRESSE-SUR-SEMOIS"]
[5555,"BAILLAMONT"]
[5555,"BELLEFONTAINE"]
[5555,"BIÈVRE"]
[5555,"CORNIMONT"]
[5555,"GRAIDE"]
[5555,"GROS-FAYS"]
[5555,"MONCEAU-EN-ARDENNE"]
[5555,"NAOMÉ"]
[5555,"OIZY"]
[5555,"PETIT-FAYS"]
[5560,"CIERGNON"]
[5560,"FINNEVAUX"]
[5560,"HOUYET"]
[5560,"HULSONNIAUX"]
[5560,"MESNIL-EGLISE"]
[5560,"MESNIL-SAINT-BLAISE"]
[5561,"CELLES"]
[5562,"CUSTINNE"]
[5563,"HOUR"]
[5564,"WANLIN"]
[5570,"BARONVILLE"]
[5570,"BEAURAING"]
[5570,"DION"]
[5570,"FELENNE"]
[5570,"FESCHAUX"]
[5570,"HONNAY"]
[5570,"JAVINGUE"]
[5570,"VONÊCHE"]
[5570,"WANCENNES"]
[5570,"WINENNE"]
[5571,"WIESME"]
[5572,"FOCANT"]
[5573,"MARTOUZIN-NEUVILLE"]
[5574,"PONDRÔME"]
[5575,"BOURSEIGNE-NEUVE"]
[5575,"BOURSEIGNE-VIEILLE"]
[5575,"GEDINNE"]
[5575,"HOUDREMONT"]
[5575,"LOUETTE-SAINT-DENIS"]
[5575,"LOUETTE-SAINT-PIERRE"]
[5575,"MALVOISIN"]
[5575,"PATIGNIES"]
[5575,"RIENNE"]
[5575,"SART-CUSTINNE"]
[5575,"VENCIMONT"]
[5575,"WILLERZIE"]
[5576,"FROIDFONTAINE"]
[5580,"AVE-ET-AUFFE"]
[5580,"BUISSONVILLE"]
[5580,"EPRAVE"]
[5580,"HAN-SUR-LESSE"]
[5580,"JEMELLE"]
[5580,"LAVAUX-SAINT-ANNE"]
[5580,"LESSIVE"]
[5580,"MONT-GAUTHIER"]
[5580,"ROCHEFORT"]
[5580,"VILLERS-SUR-LESSE"]
[5580,"WAVREILLE"]
[5590,"ACHÊNE"]
[5590,"BRAIBANT"]
[5590,"CHEVETOGNE"]
[5590,"CINEY"]
[5590,"CONNEUX"]
[5590,"HAVERSIN"]
[5590,"LEIGNON"]
[5590,"PESSOUX"]
[5590,"SERINCHAMPS"]
[5590,"SOVET"]
[5600,"FAGNOLLE"]
[5600,"FRANCHIMONT"]
[5600,"JAMAGNE"]
[5600,"JAMIOLLE"]
[5600,"MERLEMONT"]
[5600,"NEUVILLE"]
[5600,"OMEZÉE"]
[5600,"PHILIPPEVILLE"]
[5600,"ROLY"]
[5600,"ROMEDENNE"]
[5600,"SAMART"]
[5600,"SART-EN-FAGNE"]
[5600,"SAUTOUR"]
[5600,"SURICE"]
[5600,"VILLERS-EN-FAGNE"]
[5600,"VILLERS-LE-GAMBON"]
[5600,"VODECÉE"]
[5620,"CORENNE"]
[5620,"FLAVION"]
[5620,"FLORENNES"]
[5620,"HEMPTINNE-LEZ-FLORENNES"]
[5620,"MORVILLE"]
[5620,"ROSÉE"]
[5620,"SAINT-AUBIN"]
[5621,"HANZINELLE"]
[5621,"HANZINNE"]
[5621,"MORIALMÉ"]
[5621,"THY-LE-BAUDOUIN"]
[5630,"CERFONTAINE"]
[5630,"DAUSSOIS"]
[5630,"SENZEILLE"]
[5630,"SILENRIEUX"]
[5630,"SOUMOY"]
[5630,"VILLERS-DEUX-EGLISES"]
[5640,"BIESME"]
[5640,"BIESMERÉE"]
[5640,"GRAUX"]
[5640,"METTET"]
[5640,"ORET"]
[5640,"SAINT-GÉRARD"]
[5641,"FURNAUX"]
[5644,"ERMETON-SUR-BIERT"]
[5646,"STAVE"]
[5650,"CASTILLON"]
[5650,"CHASTRÈS"]
[5650,"CLERMONT"]
[5650,"FONTENELLE"]
[5650,"FRAIRE"]
[5650,"PRY"]
[5650,"VOGENÉE"]
[5650,"WALCOURT"]
[5650,"YVES-GOMEZÉE"]
[5651,"BERZÉE"]
[5651,"GOURDINNE"]
[5651,"LANEFFE"]
[5651,"ROGNÉE"]
[5651,"SOMZÉE"]
[5651,"TARCIENNE"]
[5651,"THY-LE-CHÂTEAU"]
[5660,"AUBLAIN"]
[5660,"BOUSSU-EN-FAGNE"]
[5660,"BRÛLY"]
[5660,"BRÛLY-DE-PESCHE"]
[5660,"COUVIN"]
[5660,"CUL-DES-SARTS"]
[5660,"DAILLY"]
[5660,"FRASNES"]
[5660,"GONRIEUX"]
[5660,"MARIEMBOURG"]
[5660,"PESCHE"]
[5660,"PETIGNY"]
[5660,"PETITE-CHAPELLE"]
[5660,"PRESGAUX"]
[5670,"DOURBES"]
[5670,"LE MESNIL"]
[5670,"MAZÉE"]
[5670,"NISMES"]
[5670,"OIGNIES-EN-THIÉRACHE"]
[5670,"OLLOY-SUR-VIROIN"]
[5670,"TREIGNES"]
[5670,"VIERVES-SUR-VIROIN"]
[5680,"DOISCHE"]
[5680,"GIMNÉE"]
[5680,"GOCHENÉE"]
[5680,"MATAGNE-LA-GRANDE"]
[5680,"MATAGNE-LA-PETITE"]
[5680,"NIVERLÉE"]
[5680,"ROMERÉE"]
[5680,"SOULME"]
[5680,"VAUCELLES"]
[5680,"VODELÉE"]
[6000,"CHARLEROI"]
[6001,"MARCINELLE"]
[6010,"COUILLET"]
[6020,"DAMPREMY"]
[6030,"GOUTROUX"]
[6030,"MARCHIENNE-AU-PONT"]
[6031,"MONCEAU-SUR-SAMBRE"]
[6032,"MONT-SUR-MARCHIENNE"]
[6040,"JUMET"]
[6041,"GOSSELIES"]
[6042,"LODELINSART"]
[6043,"RANSART"]
[6044,"ROUX"]
[6060,"GILLY"]
[6061,"MONTIGNIES-SUR-SAMBRE"]
[6099,"CHARLEROI X"]
[6110,"MONTIGNY-LE-TILLEUL"]
[6111,"LANDELIES"]
[6120,"COUR-SUR-HEURE"]
[6120,"HAM-SUR-HEURE"]
[6120,"JAMIOULX"]
[6120,"MARBAIX"]
[6120,"NALINNES"]
[6140,"FONTAINE-L'EVÊQUE"]
[6141,"FORCHIES-LA-MARCHE"]
[6142,"LEERNES"]
[6150,"ANDERLUES"]
[6180,"COURCELLES"]
[6181,"GOUY-LEZ-PIÉTON"]
[6182,"SOUVRET"]
[6183,"TRAZEGNIES"]
[6200,"BOUFFIOULX"]
[6200,"CHÂTELET"]
[6200,"CHÂTELINEAU"]
[6210,"FRASNES-LEZ-GOSSELIES"]
[6210,"RÈVES"]
[6210,"VILLERS-PERWIN"]
[6210,"WAYAUX"]
[6211,"MELLET"]
[6220,"FLEURUS"]
[6220,"HEPPIGNIES"]
[6220,"LAMBUSART"]
[6220,"WANGENIES"]
[6221,"SAINT-AMAND"]
[6222,"BRYE"]
[6223,"WAGNELÉE"]
[6224,"WANFERCÉE-BAULET"]
[6230,"BUZET"]
[6230,"OBAIX"]
[6230,"PONT-À-CELLES"]
[6230,"THIMÉON"]
[6230,"VIESVILLE"]
[6238,"LIBERCHIES"]
[6238,"LUTTRE"]
[6240,"FARCIENNES"]
[6240,"PIRONCHAMPS"]
[6250,"AISEAU"]
[6250,"PONT-DE-LOUP"]
[6250,"PRESLES"]
[6250,"ROSELIES"]
[6280,"ACOZ"]
[6280,"GERPINNES"]
[6280,"GOUGNIES"]
[6280,"JONCRET"]
[6280,"LOVERVAL"]
[6280,"VILLERS-POTERIE"]
[6440,"BOUSSU-LEZ-WALCOURT"]
[6440,"FOURBECHIES"]
[6440,"FROIDCHAPELLE"]
[6440,"VERGNIES"]
[6441,"ERPION"]
[6460,"BAILIÈVRE"]
[6460,"CHIMAY"]
[6460,"ROBECHIES"]
[6460,"SAINT-REMY"]
[6460,"SALLES"]
[6460,"VILLERS-LA-TOUR"]
[6461,"VIRELLES"]
[6462,"VAULX-LEZ-CHIMAY"]
[6463,"LOMPRET"]
[6464,"BAILEUX"]
[6464,"BOURLERS"]
[6464,"FORGES"]
[6464,"L'ESCAILLÈRE"]
[6464,"RIÈZES"]
[6470,"GRANDRIEU"]
[6470,"MONTBLIART"]
[6470,"RANCE"]
[6470,"SAUTIN"]
[6470,"SIVRY"]
[6500,"BARBENÇON"]
[6500,"BEAUMONT"]
[6500,"LEUGNIES"]
[6500,"LEVAL-CHAUDEVILLE"]
[6500,"RENLIES"]
[6500,"SOLRE-SAINT-GÉRY"]
[6500,"THIRIMONT"]
[6511,"STRÉE"]
[6530,"LEERS-ET-FOSTEAU"]
[6530,"THUIN"]
[6531,"BIESME-SOUS-THUIN"]
[6532,"RAGNIES"]
[6533,"BIERCÉE"]
[6534,"GOZÉE"]
[6536,"DONSTIENNES"]
[6536,"THUILLIES"]
[6540,"LOBBES"]
[6540,"MONT-SAINTE-GENEVIÈVE"]
[6542,"SARS-LA-BUISSIÈRE"]
[6543,"BIENNE-LEZ-HAPPART"]
[6560,"BERSILLIES-L'ABBAYE"]
[6560,"ERQUELINNES"]
[6560,"GRAND-RENG"]
[6560,"HANTES-WIHÉRIES"]
[6560,"MONTIGNIES-SAINT-CHRISTOPHE"]
[6560,"SOLRE-SUR-SAMBRE"]
[6567,"FONTAINE-VALMONT"]
[6567,"LABUISSIÈRE"]
[6567,"MERBES-LE-CHÂTEAU"]
[6567,"MERBES-SAINTE-MARIE"]
[6590,"MOMIGNIES"]
[6591,"MACON"]
[6592,"MONCEAU-IMBRECHIES"]
[6593,"MACQUENOISE"]
[6594,"BEAUWELZ"]
[6596,"FORGE-PHILIPPE"]
[6596,"SELOIGNES"]
[6600,"BASTOGNE"]
[6600,"LONGVILLY"]
[6600,"NOVILLE"]
[6600,"VILLERS-LA-BONNE-EAU"]
[6600,"WARDIN"]
[6630,"MARTELANGE"]
[6637,"FAUVILLERS"]
[6637,"HOLLANGE"]
[6637,"TINTANGE"]
[6640,"HOMPRÉ"]
[6640,"MORHET"]
[6640,"NIVES"]
[6640,"SIBRET"]
[6640,"VAUX-LEZ-ROSIÈRES"]
[6640,"VAUX-SUR-SÛRE"]
[6642,"JUSERET"]
[6660,"HOUFFALIZE"]
[6660,"NADRIN"]
[6661,"MONT"]
[6661,"TAILLES"]
[6662,"TAVIGNY"]
[6663,"MABOMPRÉ"]
[6666,"WIBRIN"]
[6670,"GOUVY"]
[6670,"LIMERLÉ"]
[6671,"BOVIGNY"]
[6672,"BEHO"]
[6673,"CHERAIN"]
[6674,"MONTLEBAN"]
[6680,"AMBERLOUP"]
[6680,"TILLET"]
[6681,"LAVACHERIE"]
[6686,"FLAMIERGE"]
[6687,"BERTOGNE"]
[6688,"LONGCHAMPS"]
[6690,"BIHAIN"]
[6690,"VIELSALM"]
[6692,"PETIT-THIER"]
[6698,"GRAND-HALLEUX"]
[6700,"ARLON"]
[6700,"BONNERT"]
[6700,"HEINSCH"]
[6700,"TOERNICH"]
[6704,"GUIRSCH"]
[6706,"AUTELBAS"]
[6717,"ATTERT"]
[6717,"NOBRESSART"]
[6717,"NOTHOMB"]
[6717,"THIAUMONT"]
[6717,"TONTELANGE"]
[6720,"HABAY-LA-NEUVE"]
[6720,"HACHY"]
[6721,"ANLIER"]
[6723,"HABAY-LA-VIEILLE"]
[6724,"HOUDEMONT"]
[6724,"RULLES"]
[6730,"BELLEFONTAINE"]
[6730,"ROSSIGNOL"]
[6730,"SAINT-VINCENT"]
[6730,"TINTIGNY"]
[6740,"ETALLE"]
[6740,"SAINTE-MARIE-SUR-SEMOIS"]
[6740,"VILLERS-SUR-SEMOIS"]
[6741,"VANCE"]
[6742,"CHANTEMELLE"]
[6743,"BUZENOL"]
[6747,"CHÂTILLON"]
[6747,"MEIX-LE-TIGE"]
[6747,"SAINT-LÉGER"]
[6750,"MUSSON"]
[6750,"MUSSY-LA-VILLE"]
[6750,"SIGNEULX"]
[6760,"BLEID"]
[6760,"ETHE"]
[6760,"RUETTE"]
[6760,"VIRTON"]
[6761,"LATOUR"]
[6762,"SAINT-MARD"]
[6767,"DAMPICOURT"]
[6767,"HARNONCOURT"]
[6767,"LAMORTEAU"]
[6767,"TORGNY"]
[6769,"GÉROUVILLE"]
[6769,"MEIX-DEVANT-VIRTON"]
[6769,"ROBELMONT"]
[6769,"SOMMETHONNE"]
[6769,"VILLERS-LA-LOUE"]
[6780,"HONDELANGE"]
[6780,"MESSANCY"]
[6780,"WOLKRANGE"]
[6781,"SÉLANGE"]
[6782,"HABERGY"]
[6790,"AUBANGE"]
[6791,"ATHUS"]
[6792,"HALANZY"]
[6792,"RACHECOURT"]
[6800,"BRAS"]
[6800,"FREUX"]
[6800,"LIBRAMONT-CHEVIGNY"]
[6800,"MOIRCY"]
[6800,"RECOGNE"]
[6800,"REMAGNE"]
[6800,"SAINT-PIERRE"]
[6800,"SAINTE-MARIE-CHEVIGNY"]
[6810,"CHINY"]
[6810,"IZEL"]
[6810,"JAMOIGNE"]
[6811,"LES BULLES"]
[6812,"SUXY"]
[6813,"TERMES"]
[6820,"FLORENVILLE"]
[6820,"FONTENOILLE"]
[6820,"MUNO"]
[6820,"SAINTE-CÉCILE"]
[6821,"LACUISINE"]
[6823,"VILLERS-DEVANT-ORVAL"]
[6824,"CHASSEPIERRE"]
[6830,"BOUILLON"]
[6830,"LES HAYONS"]
[6830,"POUPEHAN"]
[6830,"ROCHEHAUT"]
[6831,"NOIRFONTAINE"]
[6832,"SENSENRUTH"]
[6833,"UCIMONT"]
[6833,"VIVY"]
[6834,"BELLEVAUX"]
[6836,"DOHAN"]
[6838,"CORBION"]
[6840,"GRANDVOIR"]
[6840,"GRAPFONTAINE"]
[6840,"HAMIPRÉ"]
[6840,"LONGLIER"]
[6840,"NEUFCHÂTEAU"]
[6840,"TOURNAY"]
[6850,"CARLSBOURG"]
[6850,"OFFAGNE"]
[6850,"PALISEUL"]
[6851,"NOLLEVAUX"]
[6852,"MAISSIN"]
[6852,"OPONT"]
[6853,"FRAMONT"]
[6856,"FAYS-LES-VENEURS"]
[6860,"ASSENOIS"]
[6860,"EBLY"]
[6860,"LÉGLISE"]
[6860,"MELLIER"]
[6860,"WITRY"]
[6870,"ARVILLE"]
[6870,"AWENNE"]
[6870,"HATRIVAL"]
[6870,"MIRWART"]
[6870,"SAINT-HUBERT"]
[6870,"VESQUEVILLE"]
[6880,"AUBY-SUR-SEMOIS"]
[6880,"BERTRIX"]
[6880,"CUGNON"]
[6880,"JEHONVILLE"]
[6880,"ORGEO"]
[6887,"HERBEUMONT"]
[6887,"SAINT-MÉDARD"]
[6887,"STRAIMONT"]
[6890,"ANLOY"]
[6890,"LIBIN"]
[6890,"OCHAMPS"]
[6890,"REDU"]
[6890,"SMUID"]
[6890,"TRANSINNE"]
[6890,"VILLANCE"]
[6900,"AYE"]
[6900,"HARGIMONT"]
[6900,"HUMAIN"]
[6900,"MARCHE-EN-FAMENNE"]
[6900,"ON"]
[6900,"ROY"]
[6900,"WAHA"]
[6920,"SOHIER"]
[6920,"WELLIN"]
[6921,"CHANLY"]
[6922,"HALMA"]
[6924,"LOMPREZ"]
[6927,"BURE"]
[6927,"GRUPONT"]
[6927,"RESTEIGNE"]
[6927,"TELLIN"]
[6929,"DAVERDISSE"]
[6929,"GEMBES"]
[6929,"HAUT-FAYS"]
[6929,"PORCHERESSE"]
[6940,"BARVAUX-SUR-OURTHE"]
[6940,"DURBUY"]
[6940,"GRANDHAN"]
[6940,"SEPTON"]
[6940,"WÉRIS"]
[6941,"BENDE"]
[6941,"BOMAL-SUR-OURTHE"]
[6941,"BORLON"]
[6941,"HEYD"]
[6941,"IZIER"]
[6941,"TOHOGNE"]
[6941,"VILLERS-SAINTE-GERTRUDE"]
[6950,"HARSIN"]
[6950,"NASSOGNE"]
[6951,"BANDE"]
[6952,"GRUNE"]
[6953,"AMBLY"]
[6953,"FORRIÈRES"]
[6953,"LESTERNY"]
[6953,"MASBOURG"]
[6960,"DOCHAMPS"]
[6960,"GRANDMENIL"]
[6960,"HARRE"]
[6960,"MALEMPRÉ"]
[6960,"ODEIGNE"]
[6960,"VAUX-CHAVANNE"]
[6970,"TENNEVILLE"]
[6971,"CHAMPLON"]
[6972,"ERNEUVILLE"]
[6980,"BEAUSAINT"]
[6980,"LA ROCHE-EN-ARDENNE"]
[6982,"SAMRÉE"]
[6983,"ORTHO"]
[6984,"HIVES"]
[6986,"HALLEUX"]
[6987,"BEFFE"]
[6987,"HODISTER"]
[6987,"MARCOURT"]
[6987,"RENDEUX"]
[6990,"FRONVILLE"]
[6990,"HAMPTEAU"]
[6990,"HOTTON"]
[6990,"MARENNE"]
[6997,"AMONINES"]
[6997,"EREZÉE"]
[6997,"MORMONT"]
[6997,"SOY"]
[7000,"MONS"]
[7010,"SHAPE"]
[7011,"GHLIN"]
[7012,"FLÉNU"]
[7012,"JEMAPPES"]
[7020,"MAISIÈRES"]
[7020,"NIMY"]
[7021,"HAVRE"]
[7022,"HARMIGNIES"]
[7022,"HARVENG"]
[7022,"HYON"]
[7022,"MESVIN"]
[7022,"NOUVELLES"]
[7024,"CIPLY"]
[7030,"SAINT-SYMPHORIEN"]
[7031,"VILLERS-SAINT-GHISLAIN"]
[7032,"SPIENNES"]
[7033,"CUESMES"]
[7034,"OBOURG"]
[7034,"SAINT-DENIS"]
[7040,"ASQUILLIES"]
[7040,"AULNOIS"]
[7040,"BLAREGNIES"]
[7040,"BOUGNIES"]
[7040,"GENLY"]
[7040,"GOEGNIES-CHAUSSÉE"]
[7040,"QUÉVY-LE-GRAND"]
[7040,"QUÉVY-LE-PETIT"]
[7041,"GIVRY"]
[7041,"HAVAY"]
[7050,"ERBAUT"]
[7050,"ERBISOEUL"]
[7050,"HERCHIES"]
[7050,"JURBISE"]
[7050,"MASNUY-SAINT-JEAN"]
[7050,"MASNUY-SAINT-PIERRE"]
[7060,"HORRUES"]
[7060,"SOIGNIES"]
[7061,"CASTEAU"]
[7061,"THIEUSIES"]
[7062,"NAAST"]
[7063,"CHAUSSÉE-NOTRE-DAME-LOUVIGNIES"]
[7063,"NEUFVILLES"]
[7070,"GOTTIGNIES"]
[7070,"LE ROEULX"]
[7070,"MIGNAULT"]
[7070,"THIEU"]
[7070,"VILLE-SUR-HAINE"]
[7080,"EUGIES"]
[7080,"FRAMERIES"]
[7080,"LA BOUVERIE"]
[7080,"NOIRCHAIN"]
[7080,"SARS-LA-BRUYÈRE"]
[7090,"BRAINE-LE-COMTE"]
[7090,"HENNUYÈRES"]
[7090,"HENRIPONT"]
[7090,"PETIT-ROEULX-LEZ-BRAINE"]
[7090,"RONQUIÈRES"]
[7090,"STEENKERQUE"]
[7100,"HAINE-SAINT-PAUL"]
[7100,"HAINE-SAINT-PIERRE"]
[7100,"LA LOUVIÈRE"]
[7100,"SAINT-VAAST"]
[7100,"TRIVIÈRES"]
[7110,"BOUSSOIT"]
[7110,"HOUDENG-AIMERIES"]
[7110,"HOUDENG-GOEGNIES"]
[7110,"MAURAGE"]
[7110,"STRÉPY-BRACQUEGNIES"]
[7120,"CROIX-LEZ-ROUVEROY"]
[7120,"ESTINNES-AU-MONT"]
[7120,"ESTINNES-AU-VAL"]
[7120,"FAUROEULX"]
[7120,"HAULCHIN"]
[7120,"PEISSANT"]
[7120,"ROUVEROY"]
[7120,"VELLEREILLE-LE-SEC"]
[7120,"VELLEREILLE-LES-BRAYEUX"]
[7130,"BATTIGNIES"]
[7130,"BINCHE"]
[7130,"BRAY"]
[7131,"WAUDREZ"]
[7133,"BUVRINNES"]
[7134,"EPINOIS"]
[7134,"LEVAL-TRAHEGNIES"]
[7134,"PÉRONNES-LEZ-BINCHE"]
[7134,"RESSAIX"]
[7140,"MORLANWELZ-MARIEMONT"]
[7141,"CARNIÈRES"]
[7141,"MONT-SAINTE-ALDEGONDE"]
[7160,"CHAPELLE-LEZ-HERLAIMONT"]
[7160,"GODARVILLE"]
[7160,"PIÉTON"]
[7170,"BELLECOURT"]
[7170,"BOIS-D'HAINE"]
[7170,"FAYT-LEZ-MANAGE"]
[7170,"LA HESTRE"]
[7170,"MANAGE"]
[7180,"SENEFFE"]
[7181,"ARQUENNES"]
[7181,"FAMILLEUREUX"]
[7181,"FELUY"]
[7181,"PETIT-ROEULX-LEZ-NIVELLES"]
[7190,"ECAUSSINNES-D'ENGHIEN"]
[7190,"MARCHE-LEZ-ECAUSSINNES"]
[7191,"ECAUSSINNES-LALAING"]
[7300,"BOUSSU"]
[7301,"HORNU"]
[7320,"BERNISSART"]
[7321,"BLATON"]
[7321,"HARCHIES"]
[7322,"POMMEROEUL"]
[7322,"VILLE-POMMEROEUL"]
[7330,"SAINT-GHISLAIN"]
[7331,"BAUDOUR"]
[7332,"NEUFMAISON"]
[7332,"SIRAULT"]
[7333,"TERTRE"]
[7334,"HAUTRAGE"]
[7334,"VILLEROT"]
[7340,"COLFONTAINE"]
[7340,"PATURAGES"]
[7340,"WARQUIGNIES"]
[7340,"WASMES"]
[7350,"HAININ"]
[7350,"HENSIES"]
[7350,"MONTROEUL-SUR-HAINE"]
[7350,"THULIN"]
[7370,"BLAUGIES"]
[7370,"DOUR"]
[7370,"ELOUGES"]
[7370,"WIHÉRIES"]
[7380,"BAISIEUX"]
[7380,"QUIÉVRAIN"]
[7382,"AUDREGNIES"]
[7387,"ANGRE"]
[7387,"ANGREAU"]
[7387,"ATHIS"]
[7387,"AUTREPPE"]
[7387,"ERQUENNES"]
[7387,"FAYT-LE-FRANC"]
[7387,"MARCHIPONT"]
[7387,"MONTIGNIES-SUR-ROC"]
[7387,"ONNEZIES"]
[7387,"ROISIN"]
[7390,"QUAREGNON"]
[7390,"WASMUEL"]
[7500,"ERE"]
[7500,"SAINT-MAUR"]
[7500,"TOURNAI"]
[7501,"ORCQ"]
[7502,"ESPLECHIN"]
[7503,"FROYENNES"]
[7504,"FROIDMONT"]
[7506,"WILLEMEAU"]
[7510,"3 SUISSES"]
[7511,"VITRINE MAGIQUE"]
[7512,"YVES ROCHER"]
[7513,"YVES ROCHER"]
[7520,"RAMEGNIES-CHIN"]
[7520,"TEMPLEUVE"]
[7521,"CHERCQ"]
[7522,"BLANDAIN"]
[7522,"HERTAIN"]
[7522,"LAMAIN"]
[7522,"MARQUAIN"]
[7530,"GAURAIN-RAMECROIX"]
[7531,"HAVINNES"]
[7532,"BECLERS"]
[7533,"THIMOUGIES"]
[7534,"BARRY"]
[7534,"MAULDE"]
[7536,"VAULX"]
[7538,"VEZON"]
[7540,"KAIN"]
[7540,"MELLES"]
[7540,"QUARTES"]
[7540,"RUMILLIES"]
[7542,"MONT-SAINT-AUBERT"]
[7543,"MOURCOURT"]
[7548,"WARCHIN"]
[7600,"PÉRUWELZ"]
[7601,"ROUCOURT"]
[7602,"BURY"]
[7603,"BON-SECOURS"]
[7604,"BAUGNIES"]
[7604,"BRAFFE"]
[7604,"BRASMENIL"]
[7604,"CALLENELLE"]
[7604,"WASMES-AUDEMEZ-BRIFFOEIL"]
[7608,"WIERS"]
[7610,"RUMES"]
[7611,"LA GLANERIE"]
[7618,"TAINTIGNIES"]
[7620,"BLÉHARIES"]
[7620,"GUIGNIES"]
[7620,"HOLLAIN"]
[7620,"JOLLAIN-MERLIN"]
[7620,"WEZ-VELVAIN"]
[7621,"LESDAIN"]
[7622,"LAPLAIGNE"]
[7623,"RONGY"]
[7624,"HOWARDRIES"]
[7640,"ANTOING"]
[7640,"MAUBRAY"]
[7640,"PÉRONNES-LEZ-ANTOING"]
[7641,"BRUYELLE"]
[7642,"CALONNE"]
[7643,"FONTENOY"]
[7700,"LUINGNE"]
[7700,"MOESKROEN"]
[7711,"DOTTENIJS"]
[7712,"HERSEAUX"]
[7730,"BAILLEUL"]
[7730,"ESTAIMBOURG"]
[7730,"ESTAIMPUIS"]
[7730,"EVREGNIES"]
[7730,"LEERS-NORD"]
[7730,"NÉCHIN"]
[7730,"SAINT-LÉGER"]
[7740,"PECQ"]
[7740,"WARCOING"]
[7742,"HÉRINNES-LEZ-PECQ"]
[7743,"ESQUELMES"]
[7743,"OBIGIES"]
[7750,"AMOUGIES"]
[7750,"ANSEROEUL"]
[7750,"ORROIR"]
[7750,"RUSSEIGNIES"]
[7760,"CELLES"]
[7760,"ESCANAFFLES"]
[7760,"MOLENBAIX"]
[7760,"POPUELLES"]
[7760,"POTTES"]
[7760,"VELAINES"]
[7780,"KOMEN"]
[7780,"KOMEN-WAASTEN"]
[7781,"HOUTHEM"]
[7782,"PLOEGSTEERT"]
[7783,"BIZET"]
[7784,"NEERWAASTEN"]
[7784,"WAASTEN"]
[7800,"ATH"]
[7800,"LANQUESAINT"]
[7801,"IRCHONWELZ"]
[7802,"ORMEIGNIES"]
[7803,"BOUVIGNIES"]
[7804,"OSTICHES"]
[7804,"REBAIX"]
[7810,"MAFFLE"]
[7811,"ARBRE"]
[7812,"HOUTAING"]
[7812,"LIGNE"]
[7812,"MAINVAULT"]
[7812,"MOULBAIX"]
[7812,"VILLERS-NOTRE-DAME"]
[7812,"VILLERS-SAINT-AMAND"]
[7822,"GHISLENGHIEN"]
[7822,"ISIÈRES"]
[7822,"MESLIN-L'EVÊQUE"]
[7823,"GIBECQ"]
[7830,"BASSILLY"]
[7830,"FOULENG"]
[7830,"GONDREGNIES"]
[7830,"GRATY"]
[7830,"HELLEBECQ"]
[7830,"HOVES"]
[7830,"SILLY"]
[7830,"THORICOURT"]
[7850,"EDINGEN"]
[7850,"LETTELINGEN"]
[7850,"MARK"]
[7860,"LESSINES"]
[7861,"PAPIGNIES"]
[7861,"WANNEBECQ"]
[7862,"OGY"]
[7863,"GHOY"]
[7864,"DEUX-ACREN"]
[7866,"BOIS-DE-LESSINES"]
[7866,"OLLIGNIES"]
[7870,"BAUFFE"]
[7870,"CAMBRON-SAINT-VINCENT"]
[7870,"LENS"]
[7870,"LOMBISE"]
[7870,"MONTIGNIES-LEZ-LENS"]
[7880,"VLOESBERG"]
[7890,"ELLEZELLES"]
[7890,"LAHAMAIDE"]
[7890,"WODECQ"]
[7900,"GRANDMETZ"]
[7900,"LEUZE-EN-HAINAUT"]
[7901,"THIEULAIN"]
[7903,"BLICQUY"]
[7903,"CHAPELLE-À-OIE"]
[7903,"CHAPELLE-À-WATTINES"]
[7904,"PIPAIX"]
[7904,"TOURPES"]
[7904,"WILLAUPUIS"]
[7906,"GALLAIX"]
[7910,"ANVAING"]
[7910,"ARC-AINIÈRES"]
[7910,"ARC-WATTRIPONT"]
[7910,"CORDES"]
[7910,"ELLIGNIES-LEZ-FRASNES"]
[7910,"FOREST"]
[7910,"WATTRIPONT"]
[7911,"BUISSENAL"]
[7911,"FRASNES-LEZ-BUISSENAL"]
[7911,"HACQUEGNIES"]
[7911,"HERQUEGIES"]
[7911,"MONTROEUL-AU-BOIS"]
[7911,"MOUSTIER"]
[7911,"OEUDEGHIEN"]
[7912,"DERGNEAU"]
[7912,"SAINT-SAUVEUR"]
[7940,"BRUGELETTE"]
[7940,"CAMBRON-CASTEAU"]
[7941,"ATTRE"]
[7942,"MÉVERGNIES-LEZ-LENS"]
[7943,"GAGES"]
[7950,"CHIÈVRES"]
[7950,"GROSAGE"]
[7950,"HUISSIGNIES"]
[7950,"LADEUZE"]
[7950,"TONGRE-SAINT-MARTIN"]
[7951,"TONGRE-NOTRE-DAME"]
[7970,"BELOEIL"]
[7971,"BASÈCLES"]
[7971,"RAMEGNIES"]
[7971,"THUMAIDE"]
[7971,"WADELINCOURT"]
[7972,"AUBECHIES"]
[7972,"ELLIGNIES-SAINT-ANNE"]
[7972,"QUEVAUCAMPS"]
[7973,"GRANDGLISE"]
[7973,"STAMBRUGES"]
[8000,"BRUGGE"]
[8000,"KOOLKERKE"]
[8020,"HERTSBERGE"]
[8020,"OOSTKAMP"]
[8020,"RUDDERVOORDE"]
[8020,"WAARDAMME"]
[8200,"SINT-ANDRIES"]
[8200,"SINT-MICHIELS"]
[8210,"LOPPEM"]
[8210,"VELDEGEM"]
[8210,"ZEDELGEM"]
[8211,"AARTRIJKE"]
[8300,"KNOKKE"]
[8300,"WESTKAPELLE"]
[8301,"HEIST-AAN-ZEE"]
[8301,"RAMSKAPELLE"]
[8310,"ASSEBROEK"]
[8310,"SINT-KRUIS"]
[8340,"DAMME"]
[8340,"HOEKE"]
[8340,"LAPSCHEURE"]
[8340,"MOERKERKE"]
[8340,"OOSTKERKE"]
[8340,"SIJSELE"]
[8370,"BLANKENBERGE"]
[8370,"UITKERKE"]
[8377,"HOUTAVE"]
[8377,"MEETKERKE"]
[8377,"NIEUWMUNSTER"]
[8377,"ZUIENKERKE"]
[8380,"DUDZELE"]
[8380,"LISSEWEGE"]
[8380,"ZEEBRUGGE"]
[8400,"OOSTENDE"]
[8400,"STENE"]
[8400,"ZANDVOORDE"]
[8420,"DE HAAN"]
[8420,"KLEMSKERKE"]
[8420,"WENDUINE"]
[8421,"VLISSEGEM"]
[8430,"MIDDELKERKE"]
[8431,"WILSKERKE"]
[8432,"LEFFINGE"]
[8433,"MANNEKENSVERE"]
[8433,"SCHORE"]
[8433,"SINT-PIETERS-KAPELLE"]
[8433,"SLIJPE"]
[8434,"LOMBARDSIJDE"]
[8434,"WESTENDE"]
[8450,"BREDENE"]
[8460,"ETTELGEM"]
[8460,"OUDENBURG"]
[8460,"ROKSEM"]
[8460,"WESTKERKE"]
[8470,"GISTEL"]
[8470,"MOERE"]
[8470,"SNAASKERKE"]
[8470,"ZEVEKOTE"]
[8480,"BEKEGEM"]
[8480,"EERNEGEM"]
[8480,"ICHTEGEM"]
[8490,"JABBEKE"]
[8490,"SNELLEGEM"]
[8490,"STALHILLE"]
[8490,"VARSENARE"]
[8490,"ZERKEGEM"]
[8500,"KORTRIJK"]
[8501,"BISSEGEM"]
[8501,"HEULE"]
[8510,"BELLEGEM"]
[8510,"KOOIGEM"]
[8510,"MARKE"]
[8510,"ROLLEGEM"]
[8511,"AALBEKE"]
[8520,"KUURNE"]
[8530,"HARELBEKE"]
[8531,"BAVIKHOVE"]
[8531,"HULSTE"]
[8540,"DEERLIJK"]
[8550,"ZWEVEGEM"]
[8551,"HEESTERT"]
[8552,"MOEN"]
[8553,"OTEGEM"]
[8554,"SINT-DENIJS"]
[8560,"GULLEGEM"]
[8560,"MOORSELE"]
[8560,"WEVELGEM"]
[8570,"ANZEGEM"]
[8570,"GIJZELBRECHTEGEM"]
[8570,"INGOOIGEM"]
[8570,"VICHTE"]
[8572,"KASTER"]
[8573,"TIEGEM"]
[8580,"AVELGEM"]
[8581,"KERKHOVE"]
[8581,"WAARMAARDE"]
[8582,"OUTRIJVE"]
[8583,"BOSSUIT"]
[8587,"HELKIJN"]
[8587,"SPIERE"]
[8600,"BEERST"]
[8600,"DIKSMUIDE"]
[8600,"DRIEKAPELLEN"]
[8600,"ESEN"]
[8600,"KAASKERKE"]
[8600,"KEIEM"]
[8600,"LAMPERNISSE"]
[8600,"LEKE"]
[8600,"NIEUWKAPELLE"]
[8600,"OOSTKERKE"]
[8600,"OUDEKAPELLE"]
[8600,"PERVIJZE"]
[8600,"SINT-JACOBS-KAPELLE"]
[8600,"STUIVEKENSKERKE"]
[8600,"VLADSLO"]
[8600,"WOUMEN"]
[8610,"HANDZAME"]
[8610,"KORTEMARK"]
[8610,"WERKEN"]
[8610,"ZARREN"]
[8620,"NIEUWPOORT"]
[8620,"RAMSKAPELLE"]
[8620,"SINT-JORIS"]
[8630,"AVEKAPELLE"]
[8630,"BOOITSHOEKE"]
[8630,"BULSKAMP"]
[8630,"DE MOEREN"]
[8630,"EGGEWAARTSKAPELLE"]
[8630,"HOUTEM"]
[8630,"STEENKERKE"]
[8630,"VEURNE"]
[8630,"VINKEM"]
[8630,"WULVERINGEM"]
[8630,"ZOUTENAAIE"]
[8640,"OOSTVLETEREN"]
[8640,"WESTVLETEREN"]
[8640,"WOESTEN"]
[8647,"LO"]
[8647,"NOORDSCHOTE"]
[8647,"POLLINKHOVE"]
[8647,"RENINGE"]
[8650,"HOUTHULST"]
[8650,"KLERKEN"]
[8650,"MERKEM"]
[8660,"ADINKERKE"]
[8660,"DE PANNE"]
[8670,"KOKSIJDE"]
[8670,"OOSTDUINKERKE"]
[8670,"WULPEN"]
[8680,"BOVEKERKE"]
[8680,"KOEKELARE"]
[8680,"ZANDE"]
[8690,"ALVERINGEM"]
[8690,"HOOGSTADE"]
[8690,"OEREN"]
[8690,"SINT-RIJKERS"]
[8691,"BEVEREN-AAN-DE-IJZER"]
[8691,"GIJVERINKHOVE"]
[8691,"IZENBERGE"]
[8691,"LEISELE"]
[8691,"STAVELE"]
[8700,"AARSELE"]
[8700,"KANEGEM"]
[8700,"SCHUIFERSKAPELLE"]
[8700,"TIELT"]
[8710,"OOIGEM"]
[8710,"SINT-BAAFS-VIJVE"]
[8710,"WIELSBEKE"]
[8720,"DENTERGEM"]
[8720,"MARKEGEM"]
[8720,"OESELGEM"]
[8720,"WAKKEN"]
[8730,"BEERNEM"]
[8730,"OEDELEM"]
[8730,"SINT-JORIS"]
[8740,"EGEM"]
[8740,"PITTEM"]
[8750,"WINGENE"]
[8750,"ZWEVEZELE"]
[8755,"RUISELEDE"]
[8760,"MEULEBEKE"]
[8770,"INGELMUNSTER"]
[8780,"OOSTROZEBEKE"]
[8790,"WAREGEM"]
[8791,"BEVEREN"]
[8792,"DESSELGEM"]
[8793,"SINT-ELOOIS-VIJVE"]
[8800,"BEVEREN"]
[8800,"OEKENE"]
[8800,"ROESELARE"]
[8800,"RUMBEKE"]
[8810,"LICHTERVELDE"]
[8820,"TORHOUT"]
[8830,"GITS"]
[8830,"HOOGLEDE"]
[8840,"OOSTNIEUWKERKE"]
[8840,"STADEN"]
[8840,"WESTROZEBEKE"]
[8850,"ARDOOIE"]
[8851,"KOOLSKAMP"]
[8860,"LENDELEDE"]
[8870,"EMELGEM"]
[8870,"IZEGEM"]
[8870,"KACHTEM"]
[8880,"LEDEGEM"]
[8880,"ROLLEGEM-KAPELLE"]
[8880,"SINT-ELOOIS-WINKEL"]
[8890,"DADIZELE"]
[8890,"MOORSLEDE"]
[8900,"BRIELEN"]
[8900,"DIKKEBUS"]
[8900,"IEPER"]
[8900,"SINT-JAN"]
[8902,"HOLLEBEKE"]
[8902,"VOORMEZELE"]
[8902,"ZILLEBEKE"]
[8904,"BOEZINGE"]
[8904,"ZUIDSCHOTE"]
[8906,"ELVERDINGE"]
[8908,"VLAMERTINGE"]
[8920,"BIKSCHOTE"]
[8920,"LANGEMARK"]
[8920,"POELKAPELLE"]
[8930,"LAUWE"]
[8930,"MENEN"]
[8930,"REKKEM"]
[8940,"GELUWE"]
[8940,"WERVIK"]
[8950,"NIEUWKERKE"]
[8951,"DRANOUTER"]
[8952,"WULVERGEM"]
[8953,"WIJTSCHATE"]
[8954,"WESTOUTER"]
[8956,"KEMMEL"]
[8957,"MESEN"]
[8958,"LOKER"]
[8970,"POPERINGE"]
[8970,"RENINGELST"]
[8972,"KROMBEKE"]
[8972,"PROVEN"]
[8972,"ROESBRUGGE-HARINGE"]
[8978,"WATOU"]
[8980,"BESELARE"]
[8980,"GELUVELD"]
[8980,"PASSENDALE"]
[8980,"ZANDVOORDE"]
[8980,"ZONNEBEKE"]
[9000,"GENT"]
[9030,"MARIAKERKE"]
[9031,"DRONGEN"]
[9032,"WONDELGEM"]
[9040,"SINT-AMANDSBERG"]
[9041,"OOSTAKKER"]
[9042,"DESTELDONK"]
[9042,"MENDONK"]
[9042,"SINT-KRUIS-WINKEL"]
[9050,"GENTBRUGGE"]
[9050,"LEDEBERG"]
[9051,"AFSNEE"]
[9051,"SINT-DENIJS-WESTREM"]
[9052,"ZWIJNAARDE"]
[9060,"ZELZATE"]
[9070,"DESTELBERGEN"]
[9070,"HEUSDEN"]
[9080,"BEERVELDE"]
[9080,"LOCHRISTI"]
[9080,"ZAFFELARE"]
[9080,"ZEVENEKEN"]
[9090,"GONTRODE"]
[9090,"MELLE"]
[9099,"GENT X"]
[9100,"NIEUWKERKEN-WAAS"]
[9100,"SINT-NIKLAAS"]
[9111,"BELSELE"]
[9112,"SINAAI-WAAS"]
[9120,"BEVEREN-WAAS"]
[9120,"HAASDONK"]
[9120,"KALLO"]
[9120,"MELSELE"]
[9120,"VRASENE"]
[9130,"DOEL"]
[9130,"KALLO"]
[9130,"KIELDRECHT"]
[9130,"VERREBROEK"]
[9140,"ELVERSELE"]
[9140,"STEENDORP"]
[9140,"TEMSE"]
[9140,"TIELRODE"]
[9150,"BAZEL"]
[9150,"KRUIBEKE"]
[9150,"RUPELMONDE"]
[9160,"DAKNAM"]
[9160,"EKSAARDE"]
[9160,"LOKEREN"]
[9170,"DE KLINGE"]
[9170,"MEERDONK"]
[9170,"SINT-GILLIS-WAAS"]
[9170,"SINT-PAUWELS"]
[9180,"MOERBEKE-WAAS"]
[9185,"WACHTEBEKE"]
[9190,"KEMZEKE"]
[9190,"STEKENE"]
[9200,"APPELS"]
[9200,"BAASRODE"]
[9200,"DENDERMONDE"]
[9200,"GREMBERGEN"]
[9200,"MESPELARE"]
[9200,"OUDEGEM"]
[9200,"SCHOONAARDE"]
[9200,"SINT-GILLIS-DENDERMONDE"]
[9220,"HAMME"]
[9220,"MOERZEKE"]
[9230,"MASSEMEN"]
[9230,"WESTREM"]
[9230,"WETTEREN"]
[9240,"ZELE"]
[9250,"WAASMUNSTER"]
[9255,"BUGGENHOUT"]
[9255,"OPDORP"]
[9260,"SCHELLEBELLE"]
[9260,"SERSKAMP"]
[9260,"WICHELEN"]
[9270,"KALKEN"]
[9270,"LAARNE"]
[9280,"DENDERBELLE"]
[9280,"LEBBEKE"]
[9280,"WIEZE"]
[9290,"BERLARE"]
[9290,"OVERMERE"]
[9290,"UITBERGEN"]
[9300,"AALST"]
[9308,"GIJZEGEM"]
[9308,"HOFSTADE"]
[9310,"BAARDEGEM"]
[9310,"HERDERSEM"]
[9310,"MELDERT"]
[9310,"MOORSEL"]
[9320,"EREMBODEGEM"]
[9320,"NIEUWERKERKEN"]
[9340,"IMPE"]
[9340,"LEDE"]
[9340,"OORDEGEM"]
[9340,"SMETLEDE"]
[9340,"WANZELE"]
[9400,"APPELTERRE-EICHEM"]
[9400,"DENDERWINDEKE"]
[9400,"LIEFERINGE"]
[9400,"NEDERHASSELT"]
[9400,"NINOVE"]
[9400,"OKEGEM"]
[9400,"VOORDE"]
[9401,"POLLARE"]
[9402,"MEERBEKE"]
[9403,"NEIGEM"]
[9404,"ASPELARE"]
[9406,"OUTER"]
[9420,"AAIGEM"]
[9420,"BAMBRUGGE"]
[9420,"BURST"]
[9420,"ERONDEGEM"]
[9420,"ERPE"]
[9420,"MERE"]
[9420,"OTTERGEM"]
[9420,"VLEKKEM"]
[9450,"DENDERHOUTEM"]
[9450,"HAALTERT"]
[9450,"HELDERGEM"]
[9451,"KERKSKEN"]
[9470,"DENDERLEEUW"]
[9472,"IDDERGEM"]
[9473,"WELLE"]
[9500,"GERAARDSBERGEN"]
[9500,"GOEFERDINGE"]
[9500,"MOERBEKE"]
[9500,"NEDERBOELARE"]
[9500,"ONKERZELE"]
[9500,"OPHASSELT"]
[9500,"OVERBOELARE"]
[9500,"VIANE"]
[9500,"ZARLARDINGE"]
[9506,"GRIMMINGE"]
[9506,"IDEGEM"]
[9506,"NIEUWENHOVE"]
[9506,"SCHENDELBEKE"]
[9506,"SMEEREBBE-VLOERZEGEM"]
[9506,"WAARBEKE"]
[9506,"ZANDBERGEN"]
[9520,"BAVEGEM"]
[9520,"OOMBERGEN"]
[9520,"SINT-LIEVENS-HOUTEM"]
[9520,"VLIERZELE"]
[9520,"ZONNEGEM"]
[9521,"LETTERHOUTEM"]
[9550,"HERZELE"]
[9550,"HILLEGEM"]
[9550,"SINT-ANTELINKS"]
[9550,"SINT-LIEVENS-ESSE"]
[9550,"STEENHUIZE-WIJNHUIZE"]
[9550,"WOUBRECHTEGEM"]
[9551,"RESSEGEM"]
[9552,"BORSBEKE"]
[9570,"DEFTINGE"]
[9570,"SINT-MARIA-LIERDE"]
[9571,"HEMELVEERDEGEM"]
[9572,"SINT-MARTENS-LIERDE"]
[9600,"RONSE"]
[9620,"ELENE"]
[9620,"ERWETEGEM"]
[9620,"GODVEERDEGEM"]
[9620,"GROTENBERGE"]
[9620,"LEEUWERGEM"]
[9620,"OOMBERGEN"]
[9620,"SINT-GORIKS-OUDENHOVE"]
[9620,"SINT-MARIA-OUDENHOVE"]
[9620,"STRIJPEN"]
[9620,"VELZEKE-RUDDERSHOVE"]
[9620,"ZOTTEGEM"]
[9630,"BEERLEGEM"]
[9630,"DIKKELE"]
[9630,"HUNDELGEM"]
[9630,"MEILEGEM"]
[9630,"MUNKZWALM"]
[9630,"PAULATEM"]
[9630,"ROBORST"]
[9630,"ROZEBEKE"]
[9630,"SINT-BLASIUS-BOEKEL"]
[9630,"SINT-DENIJS-BOEKEL"]
[9630,"SINT-MARIA-LATEM"]
[9636,"NEDERZWALM-HERMELGEM"]
[9660,"BRAKEL"]
[9660,"ELST"]
[9660,"EVERBEEK"]
[9660,"MICHELBEKE"]
[9660,"NEDERBRAKEL"]
[9660,"OPBRAKEL"]
[9660,"SINT-MARIA-OUDENHOVE"]
[9660,"ZEGELSEM"]
[9661,"PARIKE"]
[9667,"SINT-KORNELIS-HOREBEKE"]
[9667,"SINT-MARIA-HOREBEKE"]
[9680,"ETIKHOVE"]
[9680,"MAARKE-KERKEM"]
[9681,"NUKERKE"]
[9688,"SCHORISSE"]
[9690,"BERCHEM"]
[9690,"KWAREMONT"]
[9690,"RUIEN"]
[9690,"ZULZEKE"]
[9700,"BEVERE"]
[9700,"EDELARE"]
[9700,"EINE"]
[9700,"ENAME"]
[9700,"HEURNE"]
[9700,"LEUPEGEM"]
[9700,"MATER"]
[9700,"MELDEN"]
[9700,"MULLEM"]
[9700,"NEDERENAME"]
[9700,"OOIKE"]
[9700,"OUDENAARDE"]
[9700,"VOLKEGEM"]
[9700,"WELDEN"]
[9750,"HUISE"]
[9750,"OUWEGEM"]
[9750,"ZINGEM"]
[9770,"KRUISHOUTEM"]
[9771,"NOKERE"]
[9772,"WANNEGEM-LEDE"]
[9790,"ELSEGEM"]
[9790,"MOREGEM"]
[9790,"OOIKE"]
[9790,"PETEGEM-AAN-DE-SCHELDE"]
[9790,"WORTEGEM"]
[9800,"ASTENE"]
[9800,"BACHTE-MARIA-LEERNE"]
[9800,"DEINZE"]
[9800,"GOTTEM"]
[9800,"GRAMMENE"]
[9800,"MEIGEM"]
[9800,"PETEGEM-AAN-DE-LEIE"]
[9800,"SINT-MARTENS-LEERNE"]
[9800,"VINKT"]
[9800,"WONTERGEM"]
[9800,"ZEVEREN"]
[9810,"EKE"]
[9810,"NAZARETH"]
[9820,"BOTTELARE"]
[9820,"LEMBERGE"]
[9820,"MELSEN"]
[9820,"MERELBEKE"]
[9820,"MUNTE"]
[9820,"SCHELDERODE"]
[9830,"SINT-MARTENS-LATEM"]
[9831,"DEURLE"]
[9840,"DE PINTE"]
[9840,"ZEVERGEM"]
[9850,"HANSBEKE"]
[9850,"LANDEGEM"]
[9850,"MERENDREE"]
[9850,"NEVELE"]
[9850,"POESELE"]
[9850,"VOSSELARE"]
[9860,"BALEGEM"]
[9860,"GIJZENZELE"]
[9860,"LANDSKOUTER"]
[9860,"MOORTSELE"]
[9860,"OOSTERZELE"]
[9860,"SCHELDEWINDEKE"]
[9870,"MACHELEN"]
[9870,"OLSENE"]
[9870,"ZULTE"]
[9880,"AALTER"]
[9880,"LOTENHULLE"]
[9880,"POEKE"]
[9881,"BELLEM"]
[9890,"ASPER"]
[9890,"BAAIGEM"]
[9890,"DIKKELVENNE"]
[9890,"GAVERE"]
[9890,"SEMMERZAKE"]
[9890,"VURSTE"]
[9900,"EEKLO"]
[9910,"KNESSELARE"]
[9910,"URSEL"]
[9920,"LOVENDEGEM"]
[9921,"VINDERHOUTE"]
[9930,"ZOMERGEM"]
[9931,"OOSTWINKEL"]
[9932,"RONSELE"]
[9940,"ERTVELDE"]
[9940,"EVERGEM"]
[9940,"KLUIZEN"]
[9940,"SLEIDINGE"]
[9950,"WAARSCHOOT"]
[9960,"ASSENEDE"]
[9961,"BOEKHOUTE"]
[9968,"BASSEVELDE"]
[9968,"OOSTEEKLO"]
[9970,"KAPRIJKE"]
[9971,"LEMBEKE"]
[9980,"SINT-LAUREINS"]
[9981,"SINT-MARGRIETE"]
[9982,"SINT-JAN-IN-EREMO"]
[9988,"WATERLAND-OUDEMAN"]
[9988,"WATERVLIET"]
[9990,"MALDEGEM"]
[9991,"ADEGEM"]
[9992,"MIDDELBURG"]

{"sheet":"eshop-template","index":1,"n_rows":9,"n_cols":30,"rows_kept":9,"cut":false,"hidden":false,"merged":[]}
[null,"OFL","datum:",{"$f":"TODAY()","v":"2014-09-02"},null,null,null,null,"DATABASE OUT OF FILAWEB (non abonnees)"]
[null,"PHILANEWS KLANTNUMMER","Active","Date start","Date end","FilaNr","PRSNr","new","Voornaam","Naam","Straat","Nr.","Bus","Geb-c/o","PC","Gemeente",null,"LandCode","land","Telefoon","GSM","Email","Taal Hard copy","Hard copy","copy e-mail","actiecode","intresse? Info?\nclub",null,null,"Y"]
[1,{"$f":"IF(D3=\"\",\"\",$B$1&\" \"&TEXT(D3,\"jj-mm\")&REPT(\"0\",4-LEN(A3))&A3)","v":"OFL 14-010001"},{"$f":"IF(D3=\"\",\"\",IF(E3<=$D$1,\"Y\",\"N\"))","v":"N"},"2014-01-01","2015-01-31",null,null,null,"KAREL","VERHELST","molenweide",null,null,null,2800,{"$f":"IF(O3=\"\",\"\",VLOOKUP(O3,'variabel data'!A:B,2,FALSE))","v":"MECHELEN"},null,{"$f":"IFERROR(VLOOKUP(S3,'variabel data'!C:F,4,FALSE),\"\")","v":"BE"},"België",null,null,null,null,null,null,null,null,null,null,"N"]
[{"$f":"A3+1","v":2},{"$f":"IF(D4=\"\",\"\",$B$1&\" \"&TEXT(D4,\"jj-mm\")&REPT(\"0\",4-LEN(A4))&A4)","v":"OFL 98-030002"},{"$f":"IF(D4=\"\",\"\",IF(E4<=$D$1,\"Y\",\"N\"))","v":"Y"},"1998-03-02",null,null,null,null,"ANN","VERHELST","molenweide",null,null,null,2800,{"$f":"IF(O4=\"\",\"\",VLOOKUP(O4,'variabel data'!A:B,2,FALSE))","v":"MECHELEN"},null,{"$f":"IFERROR(VLOOKUP(S4,'variabel data'!C:F,4,FALSE),\"\")","v":"BE"},"België"]
[{"$f":"A4+1","v":3},{"$f":"IF(D5=\"\",\"\",$B$1&\" \"&TEXT(D5,\"jj-mm\")&REPT(\"0\",4-LEN(A5))&A5)","v":""},{"$f":"IF(D5=\"\",\"\",IF(E5<=$D$1,\"Y\",\"N\"))","v":""},null,null,null,null,null,null,null,null,null,null,null,null,{"$f":"IF(O5=\"\",\"\",VLOOKUP(O5,'variabel data'!A:B,2,FALSE))","v":""},null,{"$f":"IFERROR(VLOOKUP(S5,'variabel data'!C:F,4,FALSE),\"\")","v":""}]
[4,null,null,null,null,null,null,null,null,null,null,null,null,null,null,{"$f":"IF(O6=\"\",\"\",VLOOKUP(O6,'variabel data'!A:B,2,FALSE))","v":""},null,{"$f":"IFERROR(VLOOKUP(S6,'variabel data'!C:F,4,FALSE),\"\")","v":""}]
[5,null,null,null,null,null,null,null,null,null,null,null,null,null,null,{"$f":"IF(O7=\"\",\"\",VLOOKUP(O7,'variabel data'!A:B,2,FALSE))","v":""},null,{"$f":"IFERROR(VLOOKUP(S7,'variabel data'!C:F,4,FALSE),\"\")","v":""}]
[6,null,null,null,null,null,null,null,null,null,null,null,null,null,null,{"$f":"IF(O8=\"\",\"\",VLOOKUP(O8,'variabel data'!A:B,2,FALSE))","v":""},null,{"$f":"IFERROR(VLOOKUP(S8,'variabel data'!C:F,4,FALSE),\"\")","v":""}]
[7,null,null,null,null,null,null,null,null,null,null,null,null,null,null,{"$f":"IF(O9=\"\",\"\",VLOOKUP(O9,'variabel data'!A:B,2,FALSE))","v":""},null,{"$f":"IFERROR(VLOOKUP(S9,'variabel data'!C:F,4,FALSE),\"\")","v":""}]